Workbook

Sheet HeroPowerUpConfig
A1: ID | B1: HeroLevel | C1: jingjie1 | D1: jingjie2 | E1: jingjie3 | F1: jingjieLanIDs | M1: levelUpExp | N1: DujieLevelbattleID | O1: DujieRateviaBattle | P1: DujieMustItemIDs | Q1: DujieMustItemValues | R1: DujieItemIDs | S1: DujieItemValues | T1: LeijieDamages | U1: HPFactor | V1: ATKFactor | W1: DEFFactor | X1: HudunFactor | Y1: defK | Z1: ShenshiMax | AA1: AutoXiuwei | AB1: FailureExpReduce | AC1: MaxActiveGongfaNum | AD1: MaxPassiveGongfaNum | AE1: MaxFabaoNum | AJ1: MPFactor
A2: int | B2: int | C2: int | D2: int | E2: int | F2: int[] | M2: int | N2: int | O2: int | P2: int[] | Q2: int[] | R2: int[] | S2: int[] | T2: int[] | U2: float | V2: float | W2: float | X2: float | Y2: int | Z2: int | AA2: int | AB2: int | AC2: int | AD2: int | AE2: int | AJ2: float
AF3: =SUM(AF5:AF304) -> 1229974 | AG3: =AF3/60 -> 20499.56667 | AH3: =AG3/60 -> 341.6594444 | AI3: =AH3/12 -> 28.47162037
A4: ID | B4: 玩家修为境界（等级） | C4: 大境界ID | D4: 中境界ID | E4: 小境界ID | F4: 境界语言表ID | G4: 境界名称1 | H4: 境界名称2 | I4: 境界名称3 | M4: 升级所需修为值 （-1代表最大等级) | N4: 渡劫必须战斗ID | O4: 战斗增加渡劫几率 | P4: 渡劫必需道具ID | Q4: 渡劫必需道具数量 | R4: 渡劫选有道具IDs | S4: 渡劫选有道具数量 | T4: 雷劫伤害 要填下限和上限 | U4: 生命倍率 | V4: 攻击倍率 | W4: 防御倍率 | X4: 护盾倍率 | Y4: 防御系数K | Z4: 神识上限 | AA4: 每秒获得的修为值 | AB4: 雷劫失败扣除的当前等级修为百分比 | AC4: 主动功法可配置上限 | AD4: 被动功法可配置上限 | AE4: 法宝可配置上限 | AF4: 吐纳时长(s) | AG4: 分钟 | AH4: 小时 | AI4: 天（每天12小时） | AJ4: 法力倍率
A5: 1 | B5: 1 | C5: 1 | D5: 1 | E5: =I5 -> 1 | F5: =_xlfn.TEXTJOIN(";",1,J5:L5) -> 225;235;238 | G5: 筑基期 | H5: 前 | I5: 1 | J5: 225 | K5: 235 | L5: 238 | M5: =INT(0.1*AA5*AF5)*10 -> 1200 | N5: =IF(I5=10,100001,-1) -> -1 | O5: =IF(N5=-1,-1,20) -> -1 | P5: =IF(I5=10,1002,-1) -> -1 | Q5: =IF(P5=-1,-1,100) -> -1 | R5: =IF(I5=10,"1001;1002;1004",-1) -> -1 | S5: =IF(R5=-1,-1,"100;200;300") -> -1 | T5: =IF(G5=G6,0,CONCATENATE(B5*100,";",B5*150)) -> 0 | U5: =[1]主表!I3 -> 20.11666667 | V5: =[1]主表!J3 -> 1 | W5: =[1]主表!K3 -> 1 | X5: =[1]主表!L3 -> 0 | Y5: =[1]主表!$G3 -> 105 | Z5: =[1]升级!$H2 -> 500 | AA5: 10 | AB5: -1 | AC5: 2 | AD5: 0 | AE5: 1 | AF5: =ROUND(10^(B5*0.01+2.07),0) -> 120 | AH5: =50*W5 -> 50 | AJ5: 1
A6: 2 | B6: 2 | C6: 1 | D6: 1 | E6: =I6 -> 2 | F6: =_xlfn.TEXTJOIN(";",1,J6:L6) -> 225;235;239 | G6: 筑基期 | H6: 前 | I6: 2 | J6: 225 | K6: 235 | L6: 239 | M6: =INT(0.1*AA6*AF6)*10 -> 1300 | N6: =IF(I6=10,100001,-1) -> -1 | O6: =IF(N6=-1,-1,20) -> -1 | P6: =IF(I6=10,1002,-1) -> -1 | Q6: =IF(P6=-1,-1,100) -> -1 | R6: =IF(I6=10,"1001;1002;1004",-1) -> -1 | S6: =IF(R6=-1,-1,"100;200;300") -> -1 | T6: =IF(G6=G7,0,CONCATENATE(B6*100,";",B6*150)) -> 0 | U6: =[1]主表!I4 -> 20.638 | V6: =[1]主表!J4 -> 1.02 | W6: =[1]主表!K4 -> 1.02 | X6: =[1]主表!L4 -> 0 | Y6: =[1]主表!$G4 -> 107 | Z6: =[1]升级!$H3 -> 500 | AA6: 10 | AB6: -1 | AC6: 2 | AD6: 0 | AE6: 1 | AF6: =MAX(AF5+10,ROUND(10^(B6*0.01+1.405),0)) -> 130 | AH6: 51 | AJ6: 1
A7: 3 | B7: 3 | C7: 1 | D7: 1 | E7: 3 | F7: 225;235;240 | G7: 筑基期 | H7: 前 | I7: 3 | J7: 225 | K7: 235 | L7: 240 | M7: 1400 | N7: -1 | O7: -1 | P7: -1 | Q7: -1 | R7: -1 | S7: -1 | T7: 0 | U7: =[1]主表!I5 -> 21.164 | V7: =[1]主表!J5 -> 1.04 | W7: =[1]主表!K5 -> 1.04 | X7: =[1]主表!L5 -> 0 | Y7: =[1]主表!$G5 -> 109 | Z7: =[1]升级!$H4 -> 500 | AA7: 10 | AB7: -1 | AC7: 2 | AD7: 0 | AE7: 1 | AF7: 140 | AH7: 52 | AJ7: 1
A8: 4 | B8: 4 | C8: 1 | D8: 1 | E8: 4 | F8: 225;235;241 | G8: 筑基期 | H8: 前 | I8: 4 | J8: 225 | K8: 235 | L8: 241 | M8: 1500 | N8: -1 | O8: -1 | P8: -1 | Q8: -1 | R8: -1 | S8: -1 | T8: 0 | U8: =[1]主表!I6 -> 21.69466667 | V8: =[1]主表!J6 -> 1.06 | W8: =[1]主表!K6 -> 1.06 | X8: =[1]主表!L6 -> 0 | Y8: =[1]主表!$G6 -> 111 | Z8: =[1]升级!$H5 -> 500 | AA8: 10 | AB8: -1 | AC8: 2 | AD8: 0 | AE8: 1 | AF8: 150 | AH8: 53 | AJ8: 1
A9: 5 | B9: 5 | C9: 1 | D9: 1 | E9: 5 | F9: 225;235;242 | G9: 筑基期 | H9: 前 | I9: 5 | J9: 225 | K9: 235 | L9: 242 | M9: 1600 | N9: -1 | O9: -1 | P9: -1 | Q9: -1 | R9: -1 | S9: -1 | T9: 0 | U9: =[1]主表!I7 -> 22.23 | V9: =[1]主表!J7 -> 1.08 | W9: =[1]主表!K7 -> 1.08 | X9: =[1]主表!L7 -> 0 | Y9: =[1]主表!$G7 -> 113 | Z9: =[1]升级!$H6 -> 500 | AA9: 10 | AB9: -1 | AC9: 2 | AD9: 0 | AE9: 1 | AF9: 160 | AH9: 54 | AJ9: 1
A10: 6 | B10: 6 | C10: 1 | D10: 1 | E10: 6 | F10: 225;235;243 | G10: 筑基期 | H10: 前 | I10: 6 | J10: 225 | K10: 235 | L10: 243 | M10: 1700 | N10: -1 | O10: -1 | P10: -1 | Q10: -1 | R10: -1 | S10: -1 | T10: 0 | U10: =[1]主表!I8 -> 22.77 | V10: =[1]主表!J8 -> 1.1 | W10: =[1]主表!K8 -> 1.1 | X10: =[1]主表!L8 -> 0 | Y10: =[1]主表!$G8 -> 116 | Z10: =[1]升级!$H7 -> 500 | AA10: 10 | AB10: -1 | AC10: 2 | AD10: 0 | AE10: 1 | AF10: 170 | AH10: 55 | AJ10: 1
A11: 7 | B11: 7 | C11: 1 | D11: 1 | E11: 7 | F11: 225;235;244 | G11: 筑基期 | H11: 前 | I11: 7 | J11: 225 | K11: 235 | L11: 244 | M11: 1800 | N11: -1 | O11: -1 | P11: -1 | Q11: -1 | R11: -1 | S11: -1 | T11: 0 | U11: =[1]主表!I9 -> 23.31466667 | V11: =[1]主表!J9 -> 1.12 | W11: =[1]主表!K9 -> 1.12 | X11: =[1]主表!L9 -> 0 | Y11: =[1]主表!$G9 -> 119 | Z11: =[1]升级!$H8 -> 500 | AA11: 10 | AB11: -1 | AC11: 2 | AD11: 0 | AE11: 1 | AF11: 180 | AH11: 56 | AJ11: 1
A12: 8 | B12: 8 | C12: 1 | D12: 1 | E12: 8 | F12: 225;235;245 | G12: 筑基期 | H12: 前 | I12: 8 | J12: 225 | K12: 235 | L12: 245 | M12: 1900 | N12: -1 | O12: -1 | P12: -1 | Q12: -1 | R12: -1 | S12: -1 | T12: 0 | U12: =[1]主表!I10 -> 23.864 | V12: =[1]主表!J10 -> 1.14 | W12: =[1]主表!K10 -> 1.14 | X12: =[1]主表!L10 -> 0 | Y12: =[1]主表!$G10 -> 122 | Z12: =[1]升级!$H9 -> 500 | AA12: 10 | AB12: -1 | AC12: 2 | AD12: 0 | AE12: 1 | AF12: 190 | AH12: 57 | AJ12: 1
A13: 9 | B13: 9 | C13: 1 | D13: 1 | E13: 9 | F13: 225;235;246 | G13: 筑基期 | H13: 前 | I13: 9 | J13: 225 | K13: 235 | L13: 246 | M13: 2000 | N13: -1 | O13: -1 | P13: -1 | Q13: -1 | R13: -1 | S13: -1 | T13: 0 | U13: =[1]主表!I11 -> 24.418 | V13: =[1]主表!J11 -> 1.16 | W13: =[1]主表!K11 -> 1.16 | X13: =[1]主表!L11 -> 0 | Y13: =[1]主表!$G11 -> 125 | Z13: =[1]升级!$H10 -> 500 | AA13: 10 | AB13: -1 | AC13: 2 | AD13: 0 | AE13: 1 | AF13: 200 | AH13: 58 | AJ13: 1
A14: 10 | B14: 10 | C14: 1 | D14: 1 | E14: 10 | F14: 225;235;247 | G14: 筑基期 | H14: 前 | I14: 10 | J14: 225 | K14: 235 | L14: 247 | M14: 2100 | N14: 100001 | O14: 20 | P14: 1301 | Q14: 1 | R14: 1301 | S14: 1 | T14: 0 | U14: =[1]主表!I12 -> 25.82333333 | V14: =[1]主表!J12 -> 1.22 | W14: =[1]主表!K12 -> 1.22 | X14: =[1]主表!L12 -> 0 | Y14: =[1]主表!$G12 -> 132 | Z14: =[1]升级!$H11 -> 500 | AA14: 10 | AB14: 20 | AC14: 2 | AD14: 0 | AE14: 1 | AF14: 210 | AH14: 61 | AJ14: 1
A15: 11 | B15: 11 | C15: 1 | D15: 2 | E15: 1 | F15: 225;236;238 | G15: 筑基期 | H15: 中 | I15: 1 | J15: 225 | K15: 236 | L15: 238 | M15: 2420 | N15: -1 | O15: -1 | P15: -1 | Q15: -1 | R15: -1 | S15: -1 | T15: 0 | U15: =[1]主表!I13 -> 26.39133333 | V15: =[1]主表!J13 -> 1.24 | W15: =[1]主表!K13 -> 1.24 | X15: =[1]主表!L13 -> 0 | Y15: =[1]主表!$G13 -> 135 | Z15: =[1]升级!$H12 -> 500 | AA15: 11 | AB15: -1 | AC15: 2 | AD15: 1 | AE15: 1 | AF15: 220 | AJ15: 1
A16: 12 | B16: 12 | C16: 1 | D16: 2 | E16: 2 | F16: 225;236;239 | G16: 筑基期 | H16: 中 | I16: 2 | J16: 225 | K16: 236 | L16: 239 | M16: 2530 | N16: -1 | O16: -1 | P16: -1 | Q16: -1 | R16: -1 | S16: -1 | T16: 0 | U16: =[1]主表!I14 -> 26.964 | V16: =[1]主表!J14 -> 1.26 | W16: =[1]主表!K14 -> 1.26 | X16: =[1]主表!L14 -> 0 | Y16: =[1]主表!$G14 -> 138 | Z16: =[1]升级!$H13 -> 500 | AA16: 11 | AB16: -1 | AC16: 2 | AD16: 1 | AE16: 1 | AF16: 230 | AJ16: 1
A17: 13 | B17: 13 | C17: 1 | D17: 2 | E17: 3 | F17: 225;236;240 | G17: 筑基期 | H17: 中 | I17: 3 | J17: 225 | K17: 236 | L17: 240 | M17: 2640 | N17: -1 | O17: -1 | P17: -1 | Q17: -1 | R17: -1 | S17: -1 | T17: 0 | U17: =[1]主表!I15 -> 27.54133333 | V17: =[1]主表!J15 -> 1.28 | W17: =[1]主表!K15 -> 1.28 | X17: =[1]主表!L15 -> 0 | Y17: =[1]主表!$G15 -> 141 | Z17: =[1]升级!$H14 -> 500 | AA17: 11 | AB17: -1 | AC17: 2 | AD17: 1 | AE17: 1 | AF17: 240 | AJ17: 1
A18: 14 | B18: 14 | C18: 1 | D18: 2 | E18: 4 | F18: 225;236;241 | G18: 筑基期 | H18: 中 | I18: 4 | J18: 225 | K18: 236 | L18: 241 | M18: 2750 | N18: -1 | O18: -1 | P18: -1 | Q18: -1 | R18: -1 | S18: -1 | T18: 0 | U18: =[1]主表!I16 -> 28.12333333 | V18: =[1]主表!J16 -> 1.3 | W18: =[1]主表!K16 -> 1.3 | X18: =[1]主表!L16 -> 0 | Y18: =[1]主表!$G16 -> 144 | Z18: =[1]升级!$H15 -> 500 | AA18: 11 | AB18: -1 | AC18: 2 | AD18: 1 | AE18: 1 | AF18: 250 | AJ18: 1
A19: 15 | B19: 15 | C19: 1 | D19: 2 | E19: 5 | F19: 225;236;242 | G19: 筑基期 | H19: 中 | I19: 5 | J19: 225 | K19: 236 | L19: 242 | M19: 2860 | N19: -1 | O19: -1 | P19: -1 | Q19: -1 | R19: -1 | S19: -1 | T19: 0 | U19: =[1]主表!I17 -> 28.71 | V19: =[1]主表!J17 -> 1.32 | W19: =[1]主表!K17 -> 1.32 | X19: =[1]主表!L17 -> 0 | Y19: =[1]主表!$G17 -> 147 | Z19: =[1]升级!$H16 -> 500 | AA19: 11 | AB19: -1 | AC19: 2 | AD19: 1 | AE19: 1 | AF19: 260 | AJ19: 1
A20: 16 | B20: 16 | C20: 1 | D20: 2 | E20: 6 | F20: 225;236;243 | G20: 筑基期 | H20: 中 | I20: 6 | J20: 225 | K20: 236 | L20: 243 | M20: 2970 | N20: -1 | O20: -1 | P20: -1 | Q20: -1 | R20: -1 | S20: -1 | T20: 0 | U20: =[1]主表!I18 -> 29.30133333 | V20: =[1]主表!J18 -> 1.34 | W20: =[1]主表!K18 -> 1.34 | X20: =[1]主表!L18 -> 0 | Y20: =[1]主表!$G18 -> 150 | Z20: =[1]升级!$H17 -> 500 | AA20: 11 | AB20: -1 | AC20: 2 | AD20: 1 | AE20: 1 | AF20: 270 | AJ20: 1
A21: 17 | B21: 17 | C21: 1 | D21: 2 | E21: 7 | F21: 225;236;244 | G21: 筑基期 | H21: 中 | I21: 7 | J21: 225 | K21: 236 | L21: 244 | M21: 3080 | N21: -1 | O21: -1 | P21: -1 | Q21: -1 | R21: -1 | S21: -1 | T21: 0 | U21: =[1]主表!I19 -> 29.89733333 | V21: =[1]主表!J19 -> 1.36 | W21: =[1]主表!K19 -> 1.36 | X21: =[1]主表!L19 -> 0 | Y21: =[1]主表!$G19 -> 153 | Z21: =[1]升级!$H18 -> 500 | AA21: 11 | AB21: -1 | AC21: 2 | AD21: 1 | AE21: 1 | AF21: 280 | AJ21: 1
A22: 18 | B22: 18 | C22: 1 | D22: 2 | E22: 8 | F22: 225;236;245 | G22: 筑基期 | H22: 中 | I22: 8 | J22: 225 | K22: 236 | L22: 245 | M22: 3190 | N22: -1 | O22: -1 | P22: -1 | Q22: -1 | R22: -1 | S22: -1 | T22: 0 | U22: =[1]主表!I20 -> 30.498 | V22: =[1]主表!J20 -> 1.38 | W22: =[1]主表!K20 -> 1.38 | X22: =[1]主表!L20 -> 0 | Y22: =[1]主表!$G20 -> 156 | Z22: =[1]升级!$H19 -> 500 | AA22: 11 | AB22: -1 | AC22: 2 | AD22: 1 | AE22: 1 | AF22: 290 | AJ22: 1
A23: 19 | B23: 19 | C23: 1 | D23: 2 | E23: 9 | F23: 225;236;246 | G23: 筑基期 | H23: 中 | I23: 9 | J23: 225 | K23: 236 | L23: 246 | M23: 3300 | N23: -1 | O23: -1 | P23: -1 | Q23: -1 | R23: -1 | S23: -1 | T23: 0 | U23: =[1]主表!I21 -> 31.10333333 | V23: =[1]主表!J21 -> 1.4 | W23: =[1]主表!K21 -> 1.4 | X23: =[1]主表!L21 -> 0 | Y23: =[1]主表!$G21 -> 160 | Z23: =[1]升级!$H20 -> 500 | AA23: 11 | AB23: -1 | AC23: 2 | AD23: 1 | AE23: 1 | AF23: 300 | AJ23: 1
A24: 20 | B24: 20 | C24: 1 | D24: 2 | E24: 10 | F24: 225;236;247 | G24: 筑基期 | H24: 中 | I24: 10 | J24: 225 | K24: 236 | L24: 247 | M24: 3410 | N24: 100001 | O24: 20 | P24: 1301 | Q24: 1 | R24: 1301;1302 | S24: 1;1 | T24: 0 | U24: =[1]主表!I22 -> 33.5 | V24: =[1]主表!J22 -> 1.5 | W24: =[1]主表!K22 -> 1.5 | X24: =[1]主表!L22 -> 0 | Y24: =[1]主表!$G22 -> 172 | Z24: =[1]升级!$H21 -> 500 | AA24: 11 | AB24: 20 | AC24: 2 | AD24: 1 | AE24: 1 | AF24: 310 | AJ24: 1
A25: 21 | B25: 21 | C25: 1 | D25: 3 | E25: 1 | F25: 225;237;238 | G25: 筑基期 | H25: 后 | I25: 1 | J25: 225 | K25: 237 | L25: 238 | M25: 3840 | N25: -1 | O25: -1 | P25: -1 | Q25: -1 | R25: -1 | S25: -1 | T25: 0 | U25: =[1]主表!I23 -> 34.124 | V25: =[1]主表!J23 -> 1.52 | W25: =[1]主表!K23 -> 1.52 | X25: =[1]主表!L23 -> 0 | Y25: =[1]主表!$G23 -> 184 | Z25: =[1]升级!$H22 -> 500 | AA25: 12 | AB25: -1 | AC25: 2 | AD25: 1 | AE25: 2 | AF25: 320 | AJ25: 1
A26: 22 | B26: 22 | C26: 1 | D26: 3 | E26: 2 | F26: 225;237;239 | G26: 筑基期 | H26: 后 | I26: 2 | J26: 225 | K26: 237 | L26: 239 | M26: 3960 | N26: -1 | O26: -1 | P26: -1 | Q26: -1 | R26: -1 | S26: -1 | T26: 0 | U26: =[1]主表!I24 -> 34.75266667 | V26: =[1]主表!J24 -> 1.54 | W26: =[1]主表!K24 -> 1.54 | X26: =[1]主表!L24 -> 0 | Y26: =[1]主表!$G24 -> 187 | Z26: =[1]升级!$H23 -> 500 | AA26: 12 | AB26: -1 | AC26: 2 | AD26: 1 | AE26: 2 | AF26: 330 | AJ26: 1
A27: 23 | B27: 23 | C27: 1 | D27: 3 | E27: 3 | F27: 225;237;240 | G27: 筑基期 | H27: 后 | I27: 3 | J27: 225 | K27: 237 | L27: 240 | M27: 4080 | N27: -1 | O27: -1 | P27: -1 | Q27: -1 | R27: -1 | S27: -1 | T27: 0 | U27: =[1]主表!I25 -> 35.83966667 | V27: =[1]主表!J25 -> 1.58 | W27: =[1]主表!K25 -> 1.58 | X27: =[1]主表!L25 -> 0 | Y27: =[1]主表!$G25 -> 193 | Z27: =[1]升级!$H24 -> 500 | AA27: 12 | AB27: -1 | AC27: 2 | AD27: 1 | AE27: 2 | AF27: 340 | AJ27: 1
A28: 24 | B28: 24 | C28: 1 | D28: 3 | E28: 4 | F28: 225;237;241 | G28: 筑基期 | H28: 后 | I28: 4 | J28: 225 | K28: 237 | L28: 241 | M28: 4200 | N28: -1 | O28: -1 | P28: -1 | Q28: -1 | R28: -1 | S28: -1 | T28: 0 | U28: =[1]主表!I26 -> 36.48 | V28: =[1]主表!J26 -> 1.6 | W28: =[1]主表!K26 -> 1.6 | X28: =[1]主表!L26 -> 0 | Y28: =[1]主表!$G26 -> 196 | Z28: =[1]升级!$H25 -> 500 | AA28: 12 | AB28: -1 | AC28: 2 | AD28: 1 | AE28: 2 | AF28: 350 | AJ28: 1
A29: 25 | B29: 25 | C29: 1 | D29: 3 | E29: 5 | F29: 225;237;242 | G29: 筑基期 | H29: 后 | I29: 5 | J29: 225 | K29: 237 | L29: 242 | M29: 4320 | N29: -1 | O29: -1 | P29: -1 | Q29: -1 | R29: -1 | S29: -1 | T29: 0 | U29: =[1]主表!I27 -> 37.125 | V29: =[1]主表!J27 -> 1.62 | W29: =[1]主表!K27 -> 1.62 | X29: =[1]主表!L27 -> 0 | Y29: =[1]主表!$G27 -> 200 | Z29: =[1]升级!$H26 -> 500 | AA29: 12 | AB29: -1 | AC29: 2 | AD29: 1 | AE29: 2 | AF29: 360 | AJ29: 1
A30: 26 | B30: 26 | C30: 1 | D30: 3 | E30: 6 | F30: 225;237;243 | G30: 筑基期 | H30: 后 | I30: 6 | J30: 225 | K30: 237 | L30: 243 | M30: 4440 | N30: -1 | O30: -1 | P30: -1 | Q30: -1 | R30: -1 | S30: -1 | T30: 0 | U30: =[1]主表!I28 -> 38.23533333 | V30: =[1]主表!J28 -> 1.66 | W30: =[1]主表!K28 -> 1.66 | X30: =[1]主表!L28 -> 0 | Y30: =[1]主表!$G28 -> 206 | Z30: =[1]升级!$H27 -> 500 | AA30: 12 | AB30: -1 | AC30: 2 | AD30: 1 | AE30: 2 | AF30: 370 | AJ30: 1
A31: 27 | B31: 27 | C31: 1 | D31: 3 | E31: 7 | F31: 225;237;244 | G31: 筑基期 | H31: 后 | I31: 7 | J31: 225 | K31: 237 | L31: 244 | M31: 4560 | N31: -1 | O31: -1 | P31: -1 | Q31: -1 | R31: -1 | S31: -1 | T31: 0 | U31: =[1]主表!I29 -> 38.892 | V31: =[1]主表!J29 -> 1.68 | W31: =[1]主表!K29 -> 1.68 | X31: =[1]主表!L29 -> 0 | Y31: =[1]主表!$G29 -> 210 | Z31: =[1]升级!$H28 -> 500 | AA31: 12 | AB31: -1 | AC31: 2 | AD31: 1 | AE31: 2 | AF31: 380 | AJ31: 1
A32: 28 | B32: 28 | C32: 1 | D32: 3 | E32: 8 | F32: 225;237;245 | G32: 筑基期 | H32: 后 | I32: 8 | J32: 225 | K32: 237 | L32: 245 | M32: 4680 | N32: -1 | O32: -1 | P32: -1 | Q32: -1 | R32: -1 | S32: -1 | T32: 0 | U32: =[1]主表!I30 -> 39.55333333 | V32: =[1]主表!J30 -> 1.7 | W32: =[1]主表!K30 -> 1.7 | X32: =[1]主表!L30 -> 0 | Y32: =[1]主表!$G30 -> 213 | Z32: =[1]升级!$H29 -> 500 | AA32: 12 | AB32: -1 | AC32: 2 | AD32: 1 | AE32: 2 | AF32: 390 | AJ32: 1
A33: 29 | B33: 29 | C33: 1 | D33: 3 | E33: 9 | F33: 225;237;246 | G33: 筑基期 | H33: 后 | I33: 9 | J33: 225 | K33: 237 | L33: 246 | M33: 4800 | N33: -1 | O33: -1 | P33: -1 | Q33: -1 | R33: -1 | S33: -1 | T33: 0 | U33: =[1]主表!I31 -> 40.687 | V33: =[1]主表!J31 -> 1.74 | W33: =[1]主表!K31 -> 1.74 | X33: =[1]主表!L31 -> 0 | Y33: =[1]主表!$G31 -> 220 | Z33: =[1]升级!$H30 -> 500 | AA33: 12 | AB33: -1 | AC33: 2 | AD33: 1 | AE33: 2 | AF33: 400 | AJ33: 1
A34: 30 | B34: 30 | C34: 1 | D34: 3 | E34: 10 | F34: 225;237;247 | G34: 筑基期 | H34: 后 | I34: 10 | J34: 225 | K34: 237 | L34: 247 | M34: 4920 | N34: 100001 | O34: 20 | P34: 1301 | Q34: 1 | R34: 1301;1302;1303 | S34: 1;1;1 | T34: 3000;4500 | U34: =[1]主表!I32 -> 46.06 | V34: =[1]主表!J32 -> 1.96 | W34: =[1]主表!K32 -> 1.96 | X34: =[1]主表!L32 -> 0 | Y34: =[1]主表!$G32 -> 249 | Z34: =[1]升级!$H31 -> 600 | AA34: 12 | AB34: 50 | AC34: 3 | AD34: 1 | AE34: 2 | AF34: 410 | AJ34: 1
A35: 31 | B35: 31 | C35: 2 | D35: 4 | E35: 1 | F35: 226;235;238 | G35: 金丹期 | H35: 前 | I35: 1 | J35: 226 | K35: 235 | L35: 238 | M35: 5460 | N35: -1 | O35: -1 | P35: -1 | Q35: -1 | R35: =IF(I35=10,"1001;1002;1004",-1) -> -1 | S35: =IF(R35=-1,-1,"100;200;300") -> -1 | T35: =IF(G35=G36,0,CONCATENATE(B35*100,";",B35*150)) -> 0 | U35: =[1]主表!I33 -> 47.23333333 | V35: =[1]主表!J33 -> 2 | W35: =[1]主表!K33 -> 2 | X35: =[1]主表!L33 -> 0 | Y35: =[1]主表!$G33 -> 255 | Z35: =[1]升级!$H32 -> 600 | AA35: 13 | AB35: -1 | AC35: 3 | AD35: 1 | AE35: 2 | AF35: 420 | AJ35: 1
A36: 32 | B36: 32 | C36: 2 | D36: 4 | E36: 2 | F36: 226;235;239 | G36: 金丹期 | H36: 前 | I36: 2 | J36: 226 | K36: 235 | L36: 239 | M36: 5590 | N36: -1 | O36: -1 | P36: -1 | Q36: -1 | R36: =IF(I36=10,"1001;1002;1004",-1) -> -1 | S36: -1 | T36: =IF(G36=G37,0,CONCATENATE(B36*100,";",B36*150)) -> 0 | U36: =[1]主表!I34 -> 48.416 | V36: =[1]主表!J34 -> 2.04 | W36: =[1]主表!K34 -> 2.04 | X36: =[1]主表!L34 -> 0 | Y36: =[1]主表!$G34 -> 261 | Z36: =[1]升级!$H33 -> 600 | AA36: 13 | AB36: -1 | AC36: 3 | AD36: 1 | AE36: 2 | AF36: 430 | AJ36: 1
A37: 33 | B37: 33 | C37: 2 | D37: 4 | E37: 3 | F37: 226;235;240 | G37: 金丹期 | H37: 前 | I37: 3 | J37: 226 | K37: 235 | L37: 240 | M37: 5720 | N37: -1 | O37: -1 | P37: -1 | Q37: -1 | R37: -1 | S37: -1 | T37: 0 | U37: =[1]主表!I35 -> 49.131 | V37: =[1]主表!J35 -> 2.06 | W37: =[1]主表!K35 -> 2.06 | X37: =[1]主表!L35 -> 0 | Y37: =[1]主表!$G35 -> 265 | Z37: =[1]升级!$H34 -> 600 | AA37: 13 | AB37: -1 | AC37: 3 | AD37: 1 | AE37: 2 | AF37: 440 | AJ37: 1
A38: 34 | B38: 34 | C38: 2 | D38: 4 | E38: 4 | F38: 226;235;241 | G38: 金丹期 | H38: 前 | I38: 4 | J38: 226 | K38: 235 | L38: 241 | M38: 5850 | N38: -1 | O38: -1 | P38: -1 | Q38: -1 | R38: -1 | S38: -1 | T38: 0 | U38: =[1]主表!I36 -> 50.33 | V38: =[1]主表!J36 -> 2.1 | W38: =[1]主表!K36 -> 2.1 | X38: =[1]主表!L36 -> 0 | Y38: =[1]主表!$G36 -> 272 | Z38: =[1]升级!$H35 -> 600 | AA38: 13 | AB38: -1 | AC38: 3 | AD38: 1 | AE38: 2 | AF38: 450 | AJ38: 1
A39: 35 | B39: 35 | C39: 2 | D39: 4 | E39: 5 | F39: 226;235;242 | G39: 金丹期 | H39: 前 | I39: 5 | J39: 226 | K39: 235 | L39: 242 | M39: 5980 | N39: -1 | O39: -1 | P39: -1 | Q39: -1 | R39: -1 | S39: -1 | T39: 0 | U39: =[1]主表!I37 -> 51.53833333 | V39: =[1]主表!J37 -> 2.14 | W39: =[1]主表!K37 -> 2.14 | X39: =[1]主表!L37 -> 0 | Y39: =[1]主表!$G37 -> 279 | Z39: =[1]升级!$H36 -> 600 | AA39: 13 | AB39: -1 | AC39: 3 | AD39: 1 | AE39: 2 | AF39: 460 | AJ39: 1
A40: 36 | B40: 36 | C40: 2 | D40: 4 | E40: 6 | F40: 226;235;243 | G40: 金丹期 | H40: 前 | I40: 6 | J40: 226 | K40: 235 | L40: 243 | M40: 6110 | N40: -1 | O40: -1 | P40: -1 | Q40: -1 | R40: -1 | S40: -1 | T40: 0 | U40: =[1]主表!I38 -> 52.272 | V40: =[1]主表!J38 -> 2.16 | W40: =[1]主表!K38 -> 2.16 | X40: =[1]主表!L38 -> 0 | Y40: =[1]主表!$G38 -> 283 | Z40: =[1]升级!$H37 -> 600 | AA40: 13 | AB40: -1 | AC40: 3 | AD40: 1 | AE40: 2 | AF40: 470 | AJ40: 1
A41: 37 | B41: 37 | C41: 2 | D41: 4 | E41: 7 | F41: 226;235;244 | G41: 金丹期 | H41: 前 | I41: 7 | J41: 226 | K41: 235 | L41: 244 | M41: 6240 | N41: -1 | O41: -1 | P41: -1 | Q41: -1 | R41: -1 | S41: -1 | T41: 0 | U41: =[1]主表!I39 -> 53.49666667 | V41: =[1]主表!J39 -> 2.2 | W41: =[1]主表!K39 -> 2.2 | X41: =[1]主表!L39 -> 0 | Y41: =[1]主表!$G39 -> 289 | Z41: =[1]升级!$H38 -> 600 | AA41: 13 | AB41: -1 | AC41: 3 | AD41: 1 | AE41: 2 | AF41: 480 | AJ41: 1
A42: 38 | B42: 38 | C42: 2 | D42: 4 | E42: 8 | F42: 226;235;245 | G42: 金丹期 | H42: 前 | I42: 8 | J42: 226 | K42: 235 | L42: 245 | M42: 6370 | N42: -1 | O42: -1 | P42: -1 | Q42: -1 | R42: -1 | S42: -1 | T42: 0 | U42: =[1]主表!I40 -> 54.73066667 | V42: =[1]主表!J40 -> 2.24 | W42: =[1]主表!K40 -> 2.24 | X42: =[1]主表!L40 -> 0 | Y42: =[1]主表!$G40 -> 296 | Z42: =[1]升级!$H39 -> 600 | AA42: 13 | AB42: -1 | AC42: 3 | AD42: 1 | AE42: 2 | AF42: 490 | AJ42: 1
A43: 39 | B43: 39 | C43: 2 | D43: 4 | E43: 9 | F43: 226;235;246 | G43: 金丹期 | H43: 前 | I43: 9 | J43: 226 | K43: 235 | L43: 246 | M43: 6500 | N43: -1 | O43: -1 | P43: -1 | Q43: -1 | R43: -1 | S43: -1 | T43: 0 | U43: =[1]主表!I41 -> 55.974 | V43: =[1]主表!J41 -> 2.28 | W43: =[1]主表!K41 -> 2.28 | X43: =[1]主表!L41 -> 0 | Y43: =[1]主表!$G41 -> 303 | Z43: =[1]升级!$H40 -> 600 | AA43: 13 | AB43: -1 | AC43: 3 | AD43: 1 | AE43: 2 | AF43: 500 | AJ43: 1
A44: 40 | B44: 40 | C44: 2 | D44: 4 | E44: 10 | F44: 226;235;247 | G44: 金丹期 | H44: 前 | I44: 10 | J44: 226 | K44: 235 | L44: 247 | M44: 6630 | N44: 100001 | O44: 20 | P44: 1301 | Q44: 1 | R44: 1301 | S44: 1 | T44: 0 | U44: =[1]主表!I42 -> 59.69333333 | V44: =[1]主表!J42 -> 2.42 | W44: =[1]主表!K42 -> 2.42 | X44: =[1]主表!L42 -> 0 | Y44: =[1]主表!$G42 -> 323 | Z44: =[1]升级!$H41 -> 600 | AA44: 13 | AB44: 20 | AC44: 3 | AD44: 2 | AE44: 2 | AF44: 510 | AJ44: 1
A45: 41 | B45: 41 | C45: 2 | D45: 5 | E45: 1 | F45: 226;236;238 | G45: 金丹期 | H45: 中 | I45: 1 | J45: 226 | K45: 236 | L45: 238 | M45: 7280 | N45: -1 | O45: -1 | P45: -1 | Q45: -1 | R45: =IF(I45=10,"1001;1002;1004",-1) -> -1 | S45: -1 | T45: 0 | U45: =[1]主表!I43 -> 60.967 | V45: =[1]主表!J43 -> 2.46 | W45: =[1]主表!K43 -> 2.46 | X45: =[1]主表!L43 -> 0 | Y45: =[1]主表!$G43 -> 330 | Z45: =[1]升级!$H42 -> 600 | AA45: 14 | AB45: -1 | AC45: 3 | AD45: 2 | AE45: 2 | AF45: 520 | AJ45: 1
A46: 42 | B46: 42 | C46: 2 | D46: 5 | E46: 2 | F46: 226;236;239 | G46: 金丹期 | H46: 中 | I46: 2 | J46: 226 | K46: 236 | L46: 239 | M46: 7420 | N46: -1 | O46: -1 | P46: -1 | Q46: -1 | R46: -1 | S46: -1 | T46: 0 | U46: =[1]主表!I44 -> 62.25 | V46: =[1]主表!J44 -> 2.5 | W46: =[1]主表!K44 -> 2.5 | X46: =[1]主表!L44 -> 0 | Y46: =[1]主表!$G44 -> 337 | Z46: =[1]升级!$H43 -> 600 | AA46: 14 | AB46: -1 | AC46: 3 | AD46: 2 | AE46: 2 | AF46: 530 | AJ46: 1
A47: 43 | B47: 43 | C47: 2 | D47: 5 | E47: 3 | F47: 226;236;240 | G47: 金丹期 | H47: 中 | I47: 3 | J47: 226 | K47: 236 | L47: 240 | M47: 7560 | N47: -1 | O47: -1 | P47: -1 | Q47: -1 | R47: -1 | S47: -1 | T47: 0 | U47: =[1]主表!I45 -> 63.54233333 | V47: =[1]主表!J45 -> 2.54 | W47: =[1]主表!K45 -> 2.54 | X47: =[1]主表!L45 -> 0 | Y47: =[1]主表!$G45 -> 344 | Z47: =[1]升级!$H44 -> 600 | AA47: 14 | AB47: -1 | AC47: 3 | AD47: 2 | AE47: 2 | AF47: 540 | AJ47: 1
A48: 44 | B48: 44 | C48: 2 | D48: 5 | E48: 4 | F48: 226;236;241 | G48: 金丹期 | H48: 中 | I48: 4 | J48: 226 | K48: 236 | L48: 241 | M48: 7700 | N48: -1 | O48: -1 | P48: -1 | Q48: -1 | R48: -1 | S48: -1 | T48: 0 | U48: =[1]主表!I46 -> 65.34666667 | V48: =[1]主表!J46 -> 2.6 | W48: =[1]主表!K46 -> 2.6 | X48: =[1]主表!L46 -> 0 | Y48: =[1]主表!$G46 -> 354 | Z48: =[1]升级!$H45 -> 600 | AA48: 14 | AB48: -1 | AC48: 3 | AD48: 2 | AE48: 2 | AF48: 550 | AJ48: 1
A49: 45 | B49: 45 | C49: 2 | D49: 5 | E49: 5 | F49: 226;236;242 | G49: 金丹期 | H49: 中 | I49: 5 | J49: 226 | K49: 236 | L49: 242 | M49: 7840 | N49: -1 | O49: -1 | P49: -1 | Q49: -1 | R49: -1 | S49: -1 | T49: 0 | U49: =[1]主表!I47 -> 66.66 | V49: =[1]主表!J47 -> 2.64 | W49: =[1]主表!K47 -> 2.64 | X49: =[1]主表!L47 -> 0 | Y49: =[1]主表!$G47 -> 361 | Z49: =[1]升级!$H46 -> 600 | AA49: 14 | AB49: -1 | AC49: 3 | AD49: 2 | AE49: 2 | AF49: 560 | AJ49: 1
A50: 46 | B50: 46 | C50: 2 | D50: 5 | E50: 6 | F50: 226;236;243 | G50: 金丹期 | H50: 中 | I50: 6 | J50: 226 | K50: 236 | L50: 243 | M50: 7980 | N50: -1 | O50: -1 | P50: -1 | Q50: -1 | R50: -1 | S50: -1 | T50: 0 | U50: =[1]主表!I48 -> 67.98266667 | V50: =[1]主表!J48 -> 2.68 | W50: =[1]主表!K48 -> 2.68 | X50: =[1]主表!L48 -> 0 | Y50: =[1]主表!$G48 -> 369 | Z50: =[1]升级!$H47 -> 600 | AA50: 14 | AB50: -1 | AC50: 3 | AD50: 2 | AE50: 2 | AF50: 570 | AJ50: 1
A51: 47 | B51: 47 | C51: 2 | D51: 5 | E51: 7 | F51: 226;236;244 | G51: 金丹期 | H51: 中 | I51: 7 | J51: 226 | K51: 236 | L51: 244 | M51: 8120 | N51: -1 | O51: -1 | P51: -1 | Q51: -1 | R51: -1 | S51: -1 | T51: 0 | U51: =[1]主表!I49 -> 69.31466667 | V51: =[1]主表!J49 -> 2.72 | W51: =[1]主表!K49 -> 2.72 | X51: =[1]主表!L49 -> 0 | Y51: =[1]主表!$G49 -> 376 | Z51: =[1]升级!$H48 -> 600 | AA51: 14 | AB51: -1 | AC51: 3 | AD51: 2 | AE51: 2 | AF51: 580 | AJ51: 1
A52: 48 | B52: 48 | C52: 2 | D52: 5 | E52: 8 | F52: 226;236;245 | G52: 金丹期 | H52: 中 | I52: 8 | J52: 226 | K52: 236 | L52: 245 | M52: 8260 | N52: -1 | O52: -1 | P52: -1 | Q52: -1 | R52: -1 | S52: -1 | T52: 0 | U52: =[1]主表!I50 -> 70.656 | V52: =[1]主表!J50 -> 2.76 | W52: =[1]主表!K50 -> 2.76 | X52: =[1]主表!L50 -> 0 | Y52: =[1]主表!$G50 -> 383 | Z52: =[1]升级!$H49 -> 600 | AA52: 14 | AB52: -1 | AC52: 3 | AD52: 2 | AE52: 2 | AF52: 590 | AJ52: 1
A53: 49 | B53: 49 | C53: 2 | D53: 5 | E53: 9 | F53: 226;236;246 | G53: 金丹期 | H53: 中 | I53: 9 | J53: 226 | K53: 236 | L53: 246 | M53: 8400 | N53: -1 | O53: -1 | P53: -1 | Q53: -1 | R53: -1 | S53: -1 | T53: 0 | U53: =[1]主表!I51 -> 72.521 | V53: =[1]主表!J51 -> 2.82 | W53: =[1]主表!K51 -> 2.82 | X53: =[1]主表!L51 -> 0 | Y53: =[1]主表!$G51 -> 394 | Z53: =[1]升级!$H50 -> 600 | AA53: 14 | AB53: -1 | AC53: 3 | AD53: 2 | AE53: 2 | AF53: 600 | AJ53: 1
A54: 50 | B54: 50 | C54: 2 | D54: 5 | E54: 10 | F54: 226;236;247 | G54: 金丹期 | H54: 中 | I54: 10 | J54: 226 | K54: 236 | L54: 247 | M54: 8540 | N54: 100001 | O54: 20 | P54: 1301 | Q54: 1 | R54: 1301;1302 | S54: 1;1 | T54: 0 | U54: =[1]主表!I52 -> 77.5 | V54: =[1]主表!J52 -> 3 | W54: =[1]主表!K52 -> 3 | X54: =[1]主表!L52 -> 0 | Y54: =[1]主表!$G52 -> 421 | Z54: =[1]升级!$H51 -> 600 | AA54: 14 | AB54: 20 | AC54: 3 | AD54: 2 | AE54: 3 | AF54: 610 | AJ54: 1
A55: 51 | B55: 51 | C55: 2 | D55: 6 | E55: 1 | F55: 226;237;238 | G55: 金丹期 | H55: 后 | I55: 1 | J55: 226 | K55: 237 | L55: 238 | M55: 9300 | N55: -1 | O55: -1 | P55: -1 | Q55: -1 | R55: =IF(I55=10,"1001;1002;1004",-1) -> -1 | S55: -1 | T55: 0 | U55: =[1]主表!I53 -> 78.888 | V55: =[1]主表!J53 -> 3.04 | W55: =[1]主表!K53 -> 3.04 | X55: =[1]主表!L53 -> 0 | Y55: =[1]主表!$G53 -> 448 | Z55: =[1]升级!$H52 -> 600 | AA55: 15 | AB55: -1 | AC55: 3 | AD55: 2 | AE55: 3 | AF55: 620 | AJ55: 1
A56: 52 | B56: 52 | C56: 2 | D56: 6 | E56: 2 | F56: 226;237;239 | G56: 金丹期 | H56: 后 | I56: 2 | J56: 226 | K56: 237 | L56: 239 | M56: 9450 | N56: -1 | O56: -1 | P56: -1 | Q56: -1 | R56: -1 | S56: -1 | T56: 0 | U56: =[1]主表!I54 -> 80.80666667 | V56: =[1]主表!J54 -> 3.1 | W56: =[1]主表!K54 -> 3.1 | X56: =[1]主表!L54 -> 0 | Y56: =[1]主表!$G54 -> 459 | Z56: =[1]升级!$H53 -> 600 | AA56: 15 | AB56: -1 | AC56: 3 | AD56: 2 | AE56: 3 | AF56: 630 | AJ56: 1
A57: 53 | B57: 53 | C57: 2 | D57: 6 | E57: 3 | F57: 226;237;240 | G57: 金丹期 | H57: 后 | I57: 3 | J57: 226 | K57: 237 | L57: 240 | M57: 9600 | N57: -1 | O57: -1 | P57: -1 | Q57: -1 | R57: -1 | S57: -1 | T57: 0 | U57: =[1]主表!I55 -> 82.21566667 | V57: =[1]主表!J55 -> 3.14 | W57: =[1]主表!K55 -> 3.14 | X57: =[1]主表!L55 -> 0 | Y57: =[1]主表!$G55 -> 467 | Z57: =[1]升级!$H54 -> 600 | AA57: 15 | AB57: -1 | AC57: 3 | AD57: 2 | AE57: 3 | AF57: 640 | AJ57: 1
A58: 54 | B58: 54 | C58: 2 | D58: 6 | E58: 4 | F58: 226;237;241 | G58: 金丹期 | H58: 后 | I58: 4 | J58: 226 | K58: 237 | L58: 241 | M58: 9750 | N58: -1 | O58: -1 | P58: -1 | Q58: -1 | R58: -1 | S58: -1 | T58: 0 | U58: =[1]主表!I56 -> 84.16 | V58: =[1]主表!J56 -> 3.2 | W58: =[1]主表!K56 -> 3.2 | X58: =[1]主表!L56 -> 0 | Y58: =[1]主表!$G56 -> 478 | Z58: =[1]升级!$H55 -> 600 | AA58: 15 | AB58: -1 | AC58: 3 | AD58: 2 | AE58: 3 | AF58: 650 | AJ58: 1
A59: 55 | B59: 55 | C59: 2 | D59: 6 | E59: 5 | F59: 226;237;242 | G59: 金丹期 | H59: 后 | I59: 5 | J59: 226 | K59: 237 | L59: 242 | M59: 9900 | N59: -1 | O59: -1 | P59: -1 | Q59: -1 | R59: -1 | S59: -1 | T59: 0 | U59: =[1]主表!I57 -> 86.11833333 | V59: =[1]主表!J57 -> 3.26 | W59: =[1]主表!K57 -> 3.26 | X59: =[1]主表!L57 -> 0 | Y59: =[1]主表!$G57 -> 490 | Z59: =[1]升级!$H56 -> 600 | AA59: 15 | AB59: -1 | AC59: 3 | AD59: 2 | AE59: 3 | AF59: 660 | AJ59: 1
A60: 56 | B60: 56 | C60: 2 | D60: 6 | E60: 6 | F60: 226;237;243 | G60: 金丹期 | H60: 后 | I60: 6 | J60: 226 | K60: 237 | L60: 243 | M60: 10050 | N60: -1 | O60: -1 | P60: -1 | Q60: -1 | R60: -1 | S60: -1 | T60: 0 | U60: =[1]主表!I58 -> 87.56 | V60: =[1]主表!J58 -> 3.3 | W60: =[1]主表!K58 -> 3.3 | X60: =[1]主表!L58 -> 0 | Y60: =[1]主表!$G58 -> 498 | Z60: =[1]升级!$H57 -> 600 | AA60: 15 | AB60: -1 | AC60: 3 | AD60: 2 | AE60: 3 | AF60: 670 | AJ60: 1
A61: 57 | B61: 57 | C61: 2 | D61: 6 | E61: 7 | F61: 226;237;244 | G61: 金丹期 | H61: 后 | I61: 7 | J61: 226 | K61: 237 | L61: 244 | M61: 10200 | N61: -1 | O61: -1 | P61: -1 | Q61: -1 | R61: -1 | S61: -1 | T61: 0 | U61: =[1]主表!I59 -> 89.544 | V61: =[1]主表!J59 -> 3.36 | W61: =[1]主表!K59 -> 3.36 | X61: =[1]主表!L59 -> 0 | Y61: =[1]主表!$G59 -> 509 | Z61: =[1]升级!$H58 -> 600 | AA61: 15 | AB61: -1 | AC61: 3 | AD61: 2 | AE61: 3 | AF61: 680 | AJ61: 1
A62: 58 | B62: 58 | C62: 2 | D62: 6 | E62: 8 | F62: 226;237;245 | G62: 金丹期 | H62: 后 | I62: 8 | J62: 226 | K62: 237 | L62: 245 | M62: 10350 | N62: -1 | O62: -1 | P62: -1 | Q62: -1 | R62: -1 | S62: -1 | T62: 0 | U62: =[1]主表!I60 -> 91.542 | V62: =[1]主表!J60 -> 3.42 | W62: =[1]主表!K60 -> 3.42 | X62: =[1]主表!L60 -> 0 | Y62: =[1]主表!$G60 -> 521 | Z62: =[1]升级!$H59 -> 600 | AA62: 15 | AB62: -1 | AC62: 3 | AD62: 2 | AE62: 3 | AF62: 690 | AJ62: 1
A63: 59 | B63: 59 | C63: 2 | D63: 6 | E63: 9 | F63: 226;237;246 | G63: 金丹期 | H63: 后 | I63: 9 | J63: 226 | K63: 237 | L63: 246 | M63: 10500 | N63: -1 | O63: -1 | P63: -1 | Q63: -1 | R63: -1 | S63: -1 | T63: 0 | U63: =[1]主表!I61 -> 93.554 | V63: =[1]主表!J61 -> 3.48 | W63: =[1]主表!K61 -> 3.48 | X63: =[1]主表!L61 -> 0 | Y63: =[1]主表!$G61 -> 532 | Z63: =[1]升级!$H60 -> 600 | AA63: 15 | AB63: -1 | AC63: 3 | AD63: 2 | AE63: 3 | AF63: 700 | AJ63: 1
A64: 60 | B64: 60 | C64: 2 | D64: 6 | E64: 10 | F64: 226;237;247 | G64: 金丹期 | H64: 后 | I64: 10 | J64: 226 | K64: 237 | L64: 247 | M64: 10650 | N64: 100001 | O64: 20 | P64: 1301 | Q64: 1 | R64: 1301;1302;1303 | S64: 1;1;1 | T64: 6000;9000 | U64: =[1]主表!I62 -> 105.84 | V64: =[1]主表!J62 -> 3.92 | W64: =[1]主表!K62 -> 3.92 | X64: =[1]主表!L62 -> 0 | Y64: =[1]主表!$G62 -> 603 | Z64: =[1]升级!$H61 -> 700 | AA64: 15 | AB64: 50 | AC64: 4 | AD64: 2 | AE64: 3 | AF64: 710 | AJ64: 1
A65: 61 | B65: 61 | C65: 3 | D65: 7 | E65: 1 | F65: 227;235;238 | G65: 元婴期 | H65: 前 | I65: 1 | J65: 227 | K65: 235 | L65: 238 | M65: 11520 | N65: -1 | O65: -1 | P65: -1 | Q65: -1 | R65: =IF(I65=10,"1001;1002;1004",-1) -> -1 | S65: =IF(R65=-1,-1,"100;200;300") -> -1 | T65: =IF(G65=G66,0,CONCATENATE(B65*100,";",B65*150)) -> 0 | U65: =[1]主表!I63 -> 108.4666667 | V65: =[1]主表!J63 -> 4 | W65: =[1]主表!K63 -> 4 | X65: =[1]主表!L63 -> 0 | Y65: =[1]主表!$G63 -> 618 | Z65: =[1]升级!$H62 -> 700 | AA65: 16 | AB65: -1 | AC65: 4 | AD65: 2 | AE65: 3 | AF65: 720 | AJ65: 1
A66: 62 | B66: 62 | C66: 3 | D66: 7 | E66: 2 | F66: 227;235;239 | G66: 元婴期 | H66: 前 | I66: 2 | J66: 227 | K66: 235 | L66: 239 | M66: 11680 | N66: -1 | O66: -1 | P66: -1 | Q66: -1 | R66: =IF(I66=10,"1001;1002;1004",-1) -> -1 | S66: -1 | T66: =IF(G66=G67,0,CONCATENATE(B66*100,";",B66*150)) -> 0 | U66: =[1]主表!I64 -> 110.5673333 | V66: =[1]主表!J64 -> 4.06 | W66: =[1]主表!K64 -> 4.06 | X66: =[1]主表!L64 -> 0 | Y66: =[1]主表!$G64 -> 631 | Z66: =[1]升级!$H63 -> 700 | AA66: 16 | AB66: -1 | AC66: 4 | AD66: 2 | AE66: 3 | AF66: 730 | AJ66: 1
A67: 63 | B67: 63 | C67: 3 | D67: 7 | E67: 3 | F67: 227;235;240 | G67: 元婴期 | H67: 前 | I67: 3 | J67: 227 | K67: 235 | L67: 240 | M67: 11840 | N67: -1 | O67: -1 | P67: -1 | Q67: -1 | R67: -1 | S67: -1 | T67: 0 | U67: =[1]主表!I65 -> 112.682 | V67: =[1]主表!J65 -> 4.12 | W67: =[1]主表!K65 -> 4.12 | X67: =[1]主表!L65 -> 0 | Y67: =[1]主表!$G65 -> 643 | Z67: =[1]升级!$H64 -> 700 | AA67: 16 | AB67: -1 | AC67: 4 | AD67: 2 | AE67: 3 | AF67: 740 | AJ67: 1
A68: 64 | B68: 64 | C68: 3 | D68: 7 | E68: 4 | F68: 227;235;241 | G68: 元婴期 | H68: 前 | I68: 4 | J68: 227 | K68: 235 | L68: 241 | M68: 12000 | N68: -1 | O68: -1 | P68: -1 | Q68: -1 | R68: -1 | S68: -1 | T68: 0 | U68: =[1]主表!I66 -> 115.36 | V68: =[1]主表!J66 -> 4.2 | W68: =[1]主表!K66 -> 4.2 | X68: =[1]主表!L66 -> 0 | Y68: =[1]主表!$G66 -> 659 | Z68: =[1]升级!$H65 -> 700 | AA68: 16 | AB68: -1 | AC68: 4 | AD68: 2 | AE68: 3 | AF68: 750 | AJ68: 1
A69: 65 | B69: 65 | C69: 3 | D69: 7 | E69: 5 | F69: 227;235;242 | G69: 元婴期 | H69: 前 | I69: 5 | J69: 227 | K69: 235 | L69: 242 | M69: 12160 | N69: -1 | O69: -1 | P69: -1 | Q69: -1 | R69: -1 | S69: -1 | T69: 0 | U69: =[1]主表!I67 -> 117.505 | V69: =[1]主表!J67 -> 4.26 | W69: =[1]主表!K67 -> 4.26 | X69: =[1]主表!L67 -> 0 | Y69: =[1]主表!$G67 -> 672 | Z69: =[1]升级!$H66 -> 700 | AA69: 16 | AB69: -1 | AC69: 4 | AD69: 2 | AE69: 3 | AF69: 760 | AJ69: 1
A70: 66 | B70: 66 | C70: 3 | D70: 7 | E70: =I70 -> 6 | F70: =_xlfn.TEXTJOIN(";",1,J70:L70) -> 227;235;243 | G70: 元婴期 | H70: 前 | I70: 6 | J70: 227 | K70: 235 | L70: 243 | M70: =INT(0.1*AA70*AF70)*10 -> 12320 | N70: =IF(I70=10,100001,-1) -> -1 | O70: =IF(N70=-1,-1,20) -> -1 | P70: -1 | Q70: -1 | R70: -1 | S70: =IF(R70=-1,-1,"100;200;300") -> -1 | T70: 0 | U70: =[1]主表!I68 -> 120.218 | V70: =[1]主表!J68 -> 4.34 | W70: =[1]主表!K68 -> 4.34 | X70: =[1]主表!L68 -> 0 | Y70: =[1]主表!$G68 -> 690 | Z70: =[1]升级!$H67 -> 700 | AA70: 16 | AB70: -1 | AC70: 4 | AD70: 2 | AE70: 3 | AF70: =MAX(AF69+10,ROUND(10^(B70*0.01+1.405),0)) -> 770 | AJ70: 1
A71: 67 | B71: 67 | C71: 3 | D71: 7 | E71: 7 | F71: 227;235;244 | G71: 元婴期 | H71: 前 | I71: 7 | J71: 227 | K71: 235 | L71: 244 | M71: 12480 | N71: -1 | O71: -1 | P71: -1 | Q71: -1 | R71: -1 | S71: -1 | T71: 0 | U71: =[1]主表!I69 -> 122.3933333 | V71: =[1]主表!J69 -> 4.4 | W71: =[1]主表!K69 -> 4.4 | X71: =[1]主表!L69 -> 0 | Y71: =[1]主表!$G69 -> 704 | Z71: =[1]升级!$H68 -> 700 | AA71: 16 | AB71: -1 | AC71: 4 | AD71: 2 | AE71: 3 | AF71: 780 | AJ71: 1
A72: 68 | B72: 68 | C72: 3 | D72: 7 | E72: 8 | F72: 227;235;245 | G72: 元婴期 | H72: 前 | I72: 8 | J72: 227 | K72: 235 | L72: 245 | M72: 12640 | N72: -1 | O72: -1 | P72: -1 | Q72: -1 | R72: -1 | S72: -1 | T72: 0 | U72: =[1]主表!I70 -> 125.1413333 | V72: =[1]主表!J70 -> 4.48 | W72: =[1]主表!K70 -> 4.48 | X72: =[1]主表!L70 -> 0 | Y72: =[1]主表!$G70 -> 722 | Z72: =[1]升级!$H69 -> 700 | AA72: 16 | AB72: -1 | AC72: 4 | AD72: 2 | AE72: 3 | AF72: 790 | AJ72: 1
A73: 69 | B73: 69 | C73: 3 | D73: 7 | E73: 9 | F73: 227;235;246 | G73: 元婴期 | H73: 前 | I73: 9 | J73: 227 | K73: 235 | L73: 246 | M73: 12800 | N73: -1 | O73: -1 | P73: -1 | Q73: -1 | R73: -1 | S73: -1 | T73: 0 | U73: =[1]主表!I71 -> 127.908 | V73: =[1]主表!J71 -> 4.56 | W73: =[1]主表!K71 -> 4.56 | X73: =[1]主表!L71 -> 0 | Y73: =[1]主表!$G71 -> 741 | Z73: =[1]升级!$H70 -> 700 | AA73: 16 | AB73: -1 | AC73: 4 | AD73: 2 | AE73: 3 | AF73: 800 | AJ73: 1
A74: 70 | B74: 70 | C74: 3 | D74: 7 | E74: 10 | F74: 227;235;247 | G74: 元婴期 | H74: 前 | I74: 10 | J74: 227 | K74: 235 | L74: 247 | M74: 12960 | N74: 100001 | O74: 20 | P74: 1301 | Q74: 1 | R74: 1301 | S74: 1 | T74: 0 | U74: =[1]主表!I72 -> 136.89 | V74: =[1]主表!J72 -> 4.86 | W74: =[1]主表!K72 -> 4.86 | X74: =[1]主表!L72 -> 0 | Y74: =[1]主表!$G72 -> 795 | Z74: =[1]升级!$H71 -> 700 | AA74: 16 | AB74: 20 | AC74: 4 | AD74: 3 | AE74: 3 | AF74: 810 | AJ74: 1
A75: 71 | B75: 71 | C75: 3 | D75: 8 | E75: 1 | F75: 227;236;238 | G75: 元婴期 | H75: 中 | I75: 1 | J75: 227 | K75: 236 | L75: 238 | M75: 13940 | N75: -1 | O75: -1 | P75: -1 | Q75: -1 | R75: =IF(I75=10,"1001;1002;1004",-1) -> -1 | S75: -1 | T75: 0 | U75: =[1]主表!I73 -> 139.7196667 | V75: =[1]主表!J73 -> 4.94 | W75: =[1]主表!K73 -> 4.94 | X75: =[1]主表!L73 -> 0 | Y75: =[1]主表!$G73 -> 814 | Z75: =[1]升级!$H72 -> 700 | AA75: 17 | AB75: -1 | AC75: 4 | AD75: 3 | AE75: 3 | AF75: 820 | AJ75: 1
A76: 72 | B76: 72 | C76: 3 | D76: 8 | E76: 2 | F76: 227;236;239 | G76: 元婴期 | H76: 中 | I76: 2 | J76: 227 | K76: 236 | L76: 239 | M76: 14110 | N76: -1 | O76: -1 | P76: -1 | Q76: -1 | R76: -1 | S76: -1 | T76: 0 | U76: =[1]主表!I74 -> 142.568 | V76: =[1]主表!J74 -> 5.02 | W76: =[1]主表!K74 -> 5.02 | X76: =[1]主表!L74 -> 0 | Y76: =[1]主表!$G74 -> 833 | Z76: =[1]升级!$H73 -> 700 | AA76: 17 | AB76: -1 | AC76: 4 | AD76: 3 | AE76: 3 | AF76: 830 | AJ76: 1
A77: 73 | B77: 73 | C77: 3 | D77: 8 | E77: 3 | F77: 227;236;240 | G77: 元婴期 | H77: 中 | I77: 3 | J77: 227 | K77: 236 | L77: 240 | M77: 14280 | N77: -1 | O77: -1 | P77: -1 | Q77: -1 | R77: -1 | S77: -1 | T77: 0 | U77: =[1]主表!I75 -> 145.435 | V77: =[1]主表!J75 -> 5.1 | W77: =[1]主表!K75 -> 5.1 | X77: =[1]主表!L75 -> 0 | Y77: =[1]主表!$G75 -> 852 | Z77: =[1]升级!$H74 -> 700 | AA77: 17 | AB77: -1 | AC77: 4 | AD77: 3 | AE77: 3 | AF77: 840 | AJ77: 1
A78: 74 | B78: 74 | C78: 3 | D78: 8 | E78: 4 | F78: 227;236;241 | G78: 元婴期 | H78: 中 | I78: 4 | J78: 227 | K78: 236 | L78: 241 | M78: 14450 | N78: -1 | O78: -1 | P78: -1 | Q78: -1 | R78: -1 | S78: -1 | T78: 0 | U78: =[1]主表!I76 -> 148.3206667 | V78: =[1]主表!J76 -> 5.18 | W78: =[1]主表!K76 -> 5.18 | X78: =[1]主表!L76 -> 0 | Y78: =[1]主表!$G76 -> 871 | Z78: =[1]升级!$H75 -> 700 | AA78: 17 | AB78: -1 | AC78: 4 | AD78: 3 | AE78: 3 | AF78: 850 | AJ78: 1
A79: 75 | B79: 75 | C79: 3 | D79: 8 | E79: 5 | F79: 227;236;242 | G79: 元婴期 | H79: 中 | I79: 5 | J79: 227 | K79: 236 | L79: 242 | M79: 14620 | N79: -1 | O79: -1 | P79: -1 | Q79: -1 | R79: -1 | S79: -1 | T79: 0 | U79: =[1]主表!I77 -> 151.225 | V79: =[1]主表!J77 -> 5.26 | W79: =[1]主表!K77 -> 5.26 | X79: =[1]主表!L77 -> 0 | Y79: =[1]主表!$G77 -> 891 | Z79: =[1]升级!$H76 -> 700 | AA79: 17 | AB79: -1 | AC79: 4 | AD79: 3 | AE79: 3 | AF79: 860 | AJ79: 1
A80: 76 | B80: 76 | C80: 3 | D80: 8 | E80: 6 | F80: 227;236;243 | G80: 元婴期 | H80: 中 | I80: 6 | J80: 227 | K80: 236 | L80: 243 | M80: 14790 | N80: -1 | O80: -1 | P80: -1 | Q80: -1 | R80: -1 | S80: -1 | T80: 0 | U80: =[1]主表!I78 -> 154.7253333 | V80: =[1]主表!J78 -> 5.36 | W80: =[1]主表!K78 -> 5.36 | X80: =[1]主表!L78 -> 0 | Y80: =[1]主表!$G78 -> 914 | Z80: =[1]升级!$H77 -> 700 | AA80: 17 | AB80: -1 | AC80: 4 | AD80: 3 | AE80: 3 | AF80: 870 | AJ80: 1
A81: 77 | B81: 77 | C81: 3 | D81: 8 | E81: 7 | F81: 227;236;244 | G81: 元婴期 | H81: 中 | I81: 7 | J81: 227 | K81: 236 | L81: 244 | M81: 14960 | N81: -1 | O81: -1 | P81: -1 | Q81: -1 | R81: -1 | S81: -1 | T81: 0 | U81: =[1]主表!I79 -> 157.6693333 | V81: =[1]主表!J79 -> 5.44 | W81: =[1]主表!K79 -> 5.44 | X81: =[1]主表!L79 -> 0 | Y81: =[1]主表!$G79 -> 934 | Z81: =[1]升级!$H78 -> 700 | AA81: 17 | AB81: -1 | AC81: 4 | AD81: 3 | AE81: 3 | AF81: 880 | AJ81: 1
A82: 78 | B82: 78 | C82: 3 | D82: 8 | E82: 8 | F82: 227;236;245 | G82: 元婴期 | H82: 中 | I82: 8 | J82: 227 | K82: 236 | L82: 245 | M82: 15130 | N82: -1 | O82: -1 | P82: -1 | Q82: -1 | R82: -1 | S82: -1 | T82: 0 | U82: =[1]主表!I80 -> 160.632 | V82: =[1]主表!J80 -> 5.52 | W82: =[1]主表!K80 -> 5.52 | X82: =[1]主表!L80 -> 0 | Y82: =[1]主表!$G80 -> 954 | Z82: =[1]升级!$H79 -> 700 | AA82: 17 | AB82: -1 | AC82: 4 | AD82: 3 | AE82: 3 | AF82: 890 | AJ82: 1
A83: 79 | B83: 79 | C83: 3 | D83: 8 | E83: 9 | F83: 227;236;246 | G83: 元婴期 | H83: 中 | I83: 9 | J83: 227 | K83: 236 | L83: 246 | M83: 15300 | N83: -1 | O83: -1 | P83: -1 | Q83: -1 | R83: -1 | S83: -1 | T83: 0 | U83: =[1]主表!I81 -> 164.1976667 | V83: =[1]主表!J81 -> 5.62 | W83: =[1]主表!K81 -> 5.62 | X83: =[1]主表!L81 -> 0 | Y83: =[1]主表!$G81 -> 978 | Z83: =[1]升级!$H80 -> 700 | AA83: 17 | AB83: -1 | AC83: 4 | AD83: 3 | AE83: 3 | AF83: 900 | AJ83: 1
A84: 80 | B84: 80 | C84: 3 | D84: 8 | E84: 10 | F84: 227;236;247 | G84: 元婴期 | H84: 中 | I84: 10 | J84: 227 | K84: 236 | L84: 247 | M84: 15470 | N84: 100001 | O84: 20 | P84: 1301 | Q84: 1 | R84: 1301;1302 | S84: 1;1 | T84: 0 | U84: =[1]主表!I82 -> 176 | V84: =[1]主表!J82 -> 6 | W84: =[1]主表!K82 -> 6 | X84: =[1]主表!L82 -> 0 | Y84: =[1]主表!$G82 -> 1051 | Z84: =[1]升级!$H81 -> 700 | AA84: 17 | AB84: 20 | AC84: 4 | AD84: 3 | AE84: 4 | AF84: 910 | AJ84: 1
A85: 81 | B85: 81 | C85: 3 | D85: 9 | E85: 1 | F85: 227;237;238 | G85: 元婴期 | H85: 后 | I85: 1 | J85: 227 | K85: 237 | L85: 238 | M85: 16560 | N85: -1 | O85: -1 | P85: -1 | Q85: -1 | R85: =IF(I85=10,"1001;1002;1004",-1) -> -1 | S85: -1 | T85: 0 | U85: =[1]主表!I83 -> 179.056 | V85: =[1]主表!J83 -> 6.08 | W85: =[1]主表!K83 -> 6.08 | X85: =[1]主表!L83 -> 0 | Y85: =[1]主表!$G83 -> 1119 | Z85: =[1]升级!$H82 -> 700 | AA85: 18 | AB85: -1 | AC85: 4 | AD85: 3 | AE85: 4 | AF85: 920 | AJ85: 1
A86: 82 | B86: 82 | C86: 3 | D86: 9 | E86: 2 | F86: 227;237;239 | G86: 元婴期 | H86: 后 | I86: 2 | J86: 227 | K86: 237 | L86: 239 | M86: 16740 | N86: -1 | O86: -1 | P86: -1 | Q86: -1 | R86: -1 | S86: -1 | T86: 0 | U86: =[1]主表!I84 -> 182.722 | V86: =[1]主表!J84 -> 6.18 | W86: =[1]主表!K84 -> 6.18 | X86: =[1]主表!L84 -> 0 | Y86: =[1]主表!$G84 -> 1145 | Z86: =[1]升级!$H83 -> 700 | AA86: 18 | AB86: -1 | AC86: 4 | AD86: 3 | AE86: 4 | AF86: 930 | AJ86: 1
A87: 83 | B87: 83 | C87: 3 | D87: 9 | E87: 3 | F87: 227;237;240 | G87: 元婴期 | H87: 后 | I87: 3 | J87: 227 | K87: 237 | L87: 240 | M87: 16920 | N87: -1 | O87: -1 | P87: -1 | Q87: -1 | R87: -1 | S87: -1 | T87: 0 | U87: =[1]主表!I85 -> 187.005 | V87: =[1]主表!J85 -> 6.3 | W87: =[1]主表!K85 -> 6.3 | X87: =[1]主表!L85 -> 0 | Y87: =[1]主表!$G85 -> 1174 | Z87: =[1]升级!$H84 -> 700 | AA87: 18 | AB87: -1 | AC87: 4 | AD87: 3 | AE87: 4 | AF87: 940 | AJ87: 1
A88: 84 | B88: 84 | C88: 3 | D88: 9 | E88: 4 | F88: 227;237;241 | G88: 元婴期 | H88: 后 | I88: 4 | J88: 227 | K88: 237 | L88: 241 | M88: 17100 | N88: -1 | O88: -1 | P88: -1 | Q88: -1 | R88: -1 | S88: -1 | T88: 0 | U88: =[1]主表!I86 -> 190.72 | V88: =[1]主表!J86 -> 6.4 | W88: =[1]主表!K86 -> 6.4 | X88: =[1]主表!L86 -> 0 | Y88: =[1]主表!$G86 -> 1201 | Z88: =[1]升级!$H85 -> 700 | AA88: 18 | AB88: -1 | AC88: 4 | AD88: 3 | AE88: 4 | AF88: 950 | AJ88: 1
A89: 85 | B89: 85 | C89: 3 | D89: 9 | E89: 5 | F89: 227;237;242 | G89: 元婴期 | H89: 后 | I89: 5 | J89: 227 | K89: 237 | L89: 242 | M89: 17280 | N89: -1 | O89: -1 | P89: -1 | Q89: -1 | R89: -1 | S89: -1 | T89: 0 | U89: =[1]主表!I87 -> 194.4583333 | V89: =[1]主表!J87 -> 6.5 | W89: =[1]主表!K87 -> 6.5 | X89: =[1]主表!L87 -> 0 | Y89: =[1]主表!$G87 -> 1227 | Z89: =[1]升级!$H86 -> 700 | AA89: 18 | AB89: -1 | AC89: 4 | AD89: 3 | AE89: 4 | AF89: 960 | AJ89: 1
A90: 86 | B90: 86 | C90: 3 | D90: 9 | E90: 6 | F90: 227;237;243 | G90: 元婴期 | H90: 后 | I90: 6 | J90: 227 | K90: 237 | L90: 243 | M90: 17460 | N90: -1 | O90: -1 | P90: -1 | Q90: -1 | R90: -1 | S90: -1 | T90: 0 | U90: =[1]主表!I88 -> 198.22 | V90: =[1]主表!J88 -> 6.6 | W90: =[1]主表!K88 -> 6.6 | X90: =[1]主表!L88 -> 0 | Y90: =[1]主表!$G88 -> 1254 | Z90: =[1]升级!$H87 -> 700 | AA90: 18 | AB90: -1 | AC90: 4 | AD90: 3 | AE90: 4 | AF90: 970 | AJ90: 1
A91: 87 | B91: 87 | C91: 3 | D91: 9 | E91: 7 | F91: 227;237;244 | G91: 元婴期 | H91: 后 | I91: 7 | J91: 227 | K91: 237 | L91: 244 | M91: 17640 | N91: -1 | O91: -1 | P91: -1 | Q91: -1 | R91: -1 | S91: -1 | T91: 0 | U91: =[1]主表!I89 -> 202.608 | V91: =[1]主表!J89 -> 6.72 | W91: =[1]主表!K89 -> 6.72 | X91: =[1]主表!L89 -> 0 | Y91: =[1]主表!$G89 -> 1285 | Z91: =[1]升级!$H88 -> 700 | AA91: 18 | AB91: -1 | AC91: 4 | AD91: 3 | AE91: 4 | AF91: 980 | AJ91: 1
A92: 88 | B92: 88 | C92: 3 | D92: 9 | E92: 8 | F92: 227;237;245 | G92: 元婴期 | H92: 后 | I92: 8 | J92: 227 | K92: 237 | L92: 245 | M92: 17820 | N92: -1 | O92: -1 | P92: -1 | Q92: -1 | R92: -1 | S92: -1 | T92: 0 | U92: =[1]主表!I90 -> 206.4186667 | V92: =[1]主表!J90 -> 6.82 | W92: =[1]主表!K90 -> 6.82 | X92: =[1]主表!L90 -> 0 | Y92: =[1]主表!$G90 -> 1313 | Z92: =[1]升级!$H89 -> 700 | AA92: 18 | AB92: -1 | AC92: 4 | AD92: 3 | AE92: 4 | AF92: 990 | AJ92: 1
A93: 89 | B93: 89 | C93: 3 | D93: 9 | E93: 9 | F93: 227;237;246 | G93: 元婴期 | H93: 后 | I93: 9 | J93: 227 | K93: 237 | L93: 246 | M93: 18000 | N93: -1 | O93: -1 | P93: -1 | Q93: -1 | R93: -1 | S93: -1 | T93: 0 | U93: =[1]主表!I91 -> 210.8603333 | V93: =[1]主表!J91 -> 6.94 | W93: =[1]主表!K91 -> 6.94 | X93: =[1]主表!L91 -> 0 | Y93: =[1]主表!$G91 -> 1344 | Z93: =[1]升级!$H90 -> 700 | AA93: 18 | AB93: -1 | AC93: 4 | AD93: 3 | AE93: 4 | AF93: 1000 | AJ93: 1
A94: 90 | B94: 90 | C94: 3 | D94: 9 | E94: 10 | F94: 227;237;247 | G94: 元婴期 | H94: 后 | I94: 10 | J94: 227 | K94: 237 | L94: 247 | M94: 18180 | N94: 100001 | O94: 20 | P94: 1301 | Q94: 1 | R94: 1301;1302;1303 | S94: 1;1;1 | T94: 9000;13500 | U94: =[1]主表!I92 -> 239.73 | V94: =[1]主表!J92 -> 7.86 | W94: =[1]主表!K92 -> 7.86 | X94: =[1]主表!L92 -> 0 | Y94: =[1]主表!$G92 -> 1532 | Z94: =[1]升级!$H91 -> 800 | AA94: 18 | AB94: 50 | AC94: 4 | AD94: 3 | AE94: 4 | AF94: 1010 | AJ94: 1
A95: 91 | B95: 91 | C95: 4 | D95: 10 | E95: 1 | F95: 228;235;238 | G95: 化神期 | H95: 前 | I95: 1 | J95: 228 | K95: 235 | L95: 238 | M95: 19380 | N95: -1 | O95: -1 | P95: -1 | Q95: -1 | R95: =IF(I95=10,"1001;1002;1004",-1) -> -1 | S95: =IF(R95=-1,-1,"100;200;300") -> -1 | T95: =IF(G95=G96,0,CONCATENATE(B95*100,";",B95*150)) -> 0 | U95: =[1]主表!I93 -> 244.321 | V95: =[1]主表!J93 -> 7.98 | W95: =[1]主表!K93 -> 7.98 | X95: =[1]主表!L93 -> 0 | Y95: =[1]主表!$G93 -> 1565 | Z95: =[1]升级!$H92 -> 800 | AA95: 19 | AB95: -1 | AC95: 4 | AD95: 3 | AE95: 4 | AF95: 1020 | AJ95: 1
A96: 92 | B96: 92 | C96: 4 | D96: 10 | E96: 2 | F96: 228;235;239 | G96: 化神期 | H96: 前 | I96: 2 | J96: 228 | K96: 235 | L96: 239 | M96: 19570 | N96: -1 | O96: -1 | P96: -1 | Q96: -1 | R96: =IF(I96=10,"1001;1002;1004",-1) -> -1 | S96: =IF(R96=-1,-1,"100;200;300") -> -1 | T96: =IF(G96=G97,0,CONCATENATE(B96*100,";",B96*150)) -> 0 | U96: =[1]主表!I94 -> 249.5546667 | V96: =[1]主表!J94 -> 8.12 | W96: =[1]主表!K94 -> 8.12 | X96: =[1]主表!L94 -> 0 | Y96: =[1]主表!$G94 -> 1602 | Z96: =[1]升级!$H93 -> 800 | AA96: 19 | AB96: -1 | AC96: 4 | AD96: 3 | AE96: 4 | AF96: 1030 | AJ96: 1
A97: 93 | B97: 93 | C97: 4 | D97: 10 | E97: 3 | F97: 228;235;240 | G97: 化神期 | H97: 前 | I97: 3 | J97: 228 | K97: 235 | L97: 240 | M97: 19760 | N97: -1 | O97: -1 | P97: -1 | Q97: -1 | R97: -1 | S97: -1 | T97: 0 | U97: =[1]主表!I95 -> 254.204 | V97: =[1]主表!J95 -> 8.24 | W97: =[1]主表!K95 -> 8.24 | X97: =[1]主表!L95 -> 0 | Y97: =[1]主表!$G95 -> 1636 | Z97: =[1]升级!$H94 -> 800 | AA97: 19 | AB97: -1 | AC97: 4 | AD97: 3 | AE97: 4 | AF97: 1040 | AJ97: 1
A98: 94 | B98: 94 | C98: 4 | D98: 10 | E98: 4 | F98: 228;235;241 | G98: 化神期 | H98: 前 | I98: 4 | J98: 228 | K98: 235 | L98: 241 | M98: 19950 | N98: -1 | O98: -1 | P98: -1 | Q98: -1 | R98: -1 | S98: -1 | T98: 0 | U98: =[1]主表!I96 -> 259.5006667 | V98: =[1]主表!J96 -> 8.38 | W98: =[1]主表!K96 -> 8.38 | X98: =[1]主表!L96 -> 0 | Y98: =[1]主表!$G96 -> 1674 | Z98: =[1]升级!$H95 -> 800 | AA98: 19 | AB98: -1 | AC98: 4 | AD98: 3 | AE98: 4 | AF98: 1050 | AJ98: 1
A99: 95 | B99: 95 | C99: 4 | D99: 10 | E99: 5 | F99: 228;235;242 | G99: 化神期 | H99: 前 | I99: 5 | J99: 228 | K99: 235 | L99: 242 | M99: 20140 | N99: -1 | O99: -1 | P99: -1 | Q99: -1 | R99: -1 | S99: -1 | T99: 0 | U99: =[1]主表!I97 -> 264.83 | V99: =[1]主表!J97 -> 8.52 | W99: =[1]主表!K97 -> 8.52 | X99: =[1]主表!L97 -> 0 | Y99: =[1]主表!$G97 -> 1712 | Z99: =[1]升级!$H96 -> 800 | AA99: 19 | AB99: -1 | AC99: 4 | AD99: 3 | AE99: 4 | AF99: 1060 | AJ99: 1
A100: 96 | B100: 96 | C100: 4 | D100: 10 | E100: 6 | F100: 228;235;243 | G100: 化神期 | H100: 前 | I100: 6 | J100: 228 | K100: 235 | L100: 243 | M100: 20330 | N100: -1 | O100: -1 | P100: -1 | Q100: -1 | R100: -1 | S100: -1 | T100: 0 | U100: =[1]主表!I98 -> 270.192 | V100: =[1]主表!J98 -> 8.66 | W100: =[1]主表!K98 -> 8.66 | X100: =[1]主表!L98 -> 0 | Y100: =[1]主表!$G98 -> 1751 | Z100: =[1]升级!$H97 -> 800 | AA100: 19 | AB100: -1 | AC100: 4 | AD100: 3 | AE100: 4 | AF100: 1070 | AJ100: 1
A101: 97 | B101: 97 | C101: 4 | D101: 10 | E101: 7 | F101: 228;235;244 | G101: 化神期 | H101: 前 | I101: 7 | J101: 228 | K101: 235 | L101: 244 | M101: 20520 | N101: -1 | O101: -1 | P101: -1 | Q101: -1 | R101: -1 | S101: -1 | T101: 0 | U101: =[1]主表!I99 -> 275.5866667 | V101: =[1]主表!J99 -> 8.8 | W101: =[1]主表!K99 -> 8.8 | X101: =[1]主表!L99 -> 0 | Y101: =[1]主表!$G99 -> 1790 | Z101: =[1]升级!$H98 -> 800 | AA101: 19 | AB101: -1 | AC101: 4 | AD101: 3 | AE101: 4 | AF101: 1080 | AJ101: 1
A102: 98 | B102: 98 | C102: 4 | D102: 10 | E102: 8 | F102: 228;235;245 | G102: 化神期 | H102: 前 | I102: 8 | J102: 228 | K102: 235 | L102: 245 | M102: 20710 | N102: -1 | O102: -1 | P102: -1 | Q102: -1 | R102: -1 | S102: -1 | T102: 0 | U102: =[1]主表!I100 -> 281.014 | V102: =[1]主表!J100 -> 8.94 | W102: =[1]主表!K100 -> 8.94 | X102: =[1]主表!L100 -> 0 | Y102: =[1]主表!$G100 -> 1829 | Z102: =[1]升级!$H99 -> 800 | AA102: 19 | AB102: -1 | AC102: 4 | AD102: 3 | AE102: 4 | AF102: 1090 | AJ102: 1
A103: 99 | B103: 99 | C103: 4 | D103: 10 | E103: 9 | F103: 228;235;246 | G103: 化神期 | H103: 前 | I103: 9 | J103: 228 | K103: 235 | L103: 246 | M103: 20900 | N103: -1 | O103: -1 | P103: -1 | Q103: -1 | R103: -1 | S103: -1 | T103: 0 | U103: =[1]主表!I101 -> 287.105 | V103: =[1]主表!J101 -> 9.1 | W103: =[1]主表!K101 -> 9.1 | X103: =[1]主表!L101 -> 0 | Y103: =[1]主表!$G101 -> 1873 | Z103: =[1]升级!$H100 -> 800 | AA103: 19 | AB103: -1 | AC103: 4 | AD103: 3 | AE103: 4 | AF103: 1100 | AJ103: 1
A104: 100 | B104: 100 | C104: 4 | D104: 10 | E104: 10 | F104: 228;235;247 | G104: 化神期 | H104: 前 | I104: 10 | J104: 228 | K104: 235 | L104: 247 | M104: 21090 | N104: 100001 | O104: 20 | P104: 1301 | Q104: 1 | R104: 1301 | S104: 1 | T104: 0 | U104: =[1]主表!I102 -> 307.1666667 | V104: =[1]主表!J102 -> 9.7 | W104: =[1]主表!K102 -> 9.7 | X104: =[1]主表!L102 -> 0 | Y104: =[1]主表!$G102 -> 2008 | Z104: =[1]升级!$H101 -> 800 | AA104: 19 | AB104: 20 | AC104: 4 | AD104: 3 | AE104: 4 | AF104: 1110 | AJ104: 1
A105: 101 | B105: 101 | C105: 4 | D105: 11 | E105: 1 | F105: 228;236;238 | G105: 化神期 | H105: 中 | I105: 1 | J105: 228 | K105: 236 | L105: 238 | M105: 22400 | N105: -1 | O105: -1 | P105: -1 | Q105: -1 | R105: =IF(I105=10,"1001;1002;1004",-1) -> -1 | S105: -1 | T105: 0 | U105: =[1]主表!I103 -> 313.3836667 | V105: =[1]主表!J103 -> 9.86 | W105: =[1]主表!K103 -> 9.86 | X105: =[1]主表!L103 -> 0 | Y105: =[1]主表!$G103 -> 2053 | Z105: =[1]升级!$H102 -> 800 | AA105: 20 | AB105: -1 | AC105: 4 | AD105: 3 | AE105: 4 | AF105: 1120 | AJ105: 1
A106: 102 | B106: 102 | C106: 4 | D106: 11 | E106: 2 | F106: 228;236;239 | G106: 化神期 | H106: 中 | I106: 2 | J106: 228 | K106: 236 | L106: 239 | M106: 22600 | N106: -1 | O106: -1 | P106: -1 | Q106: -1 | R106: -1 | S106: -1 | T106: 0 | U106: =[1]主表!I104 -> 319.638 | V106: =[1]主表!J104 -> 10.02 | W106: =[1]主表!K104 -> 10.02 | X106: =[1]主表!L104 -> 0 | Y106: =[1]主表!$G104 -> 2098 | Z106: =[1]升级!$H103 -> 800 | AA106: 20 | AB106: -1 | AC106: 4 | AD106: 3 | AE106: 4 | AF106: 1130 | AJ106: 1
A107: 103 | B107: 103 | C107: 4 | D107: 11 | E107: 3 | F107: 228;236;240 | G107: 化神期 | H107: 中 | I107: 3 | J107: 228 | K107: 236 | L107: 240 | M107: 22800 | N107: -1 | O107: -1 | P107: -1 | Q107: -1 | R107: -1 | S107: -1 | T107: 0 | U107: =[1]主表!I105 -> 325.9296667 | V107: =[1]主表!J105 -> 10.18 | W107: =[1]主表!K105 -> 10.18 | X107: =[1]主表!L105 -> 0 | Y107: =[1]主表!$G105 -> 2144 | Z107: =[1]升级!$H104 -> 800 | AA107: 20 | AB107: -1 | AC107: 4 | AD107: 3 | AE107: 4 | AF107: 1140 | AJ107: 1
A108: 104 | B108: 104 | C108: 4 | D108: 11 | E108: 4 | F108: 228;236;241 | G108: 化神期 | H108: 中 | I108: 4 | J108: 228 | K108: 236 | L108: 241 | M108: 23000 | N108: -1 | O108: -1 | P108: -1 | Q108: -1 | R108: -1 | S108: -1 | T108: 0 | U108: =[1]主表!I106 -> 332.9013333 | V108: =[1]主表!J106 -> 10.36 | W108: =[1]主表!K106 -> 10.36 | X108: =[1]主表!L106 -> 0 | Y108: =[1]主表!$G106 -> 2195 | Z108: =[1]升级!$H105 -> 800 | AA108: 20 | AB108: -1 | AC108: 4 | AD108: 3 | AE108: 4 | AF108: 1150 | AJ108: 1
A109: 105 | B109: 105 | C109: 4 | D109: 11 | E109: 5 | F109: 228;236;242 | G109: 化神期 | H109: 中 | I109: 5 | J109: 228 | K109: 236 | L109: 242 | M109: 23200 | N109: -1 | O109: -1 | P109: -1 | Q109: -1 | R109: -1 | S109: -1 | T109: 0 | U109: =[1]主表!I107 -> 339.27 | V109: =[1]主表!J107 -> 10.52 | W109: =[1]主表!K107 -> 10.52 | X109: =[1]主表!L107 -> 0 | Y109: =[1]主表!$G107 -> 2241 | Z109: =[1]升级!$H106 -> 800 | AA109: 20 | AB109: -1 | AC109: 4 | AD109: 3 | AE109: 4 | AF109: 1160 | AJ109: 1
A110: 106 | B110: 106 | C110: 4 | D110: 11 | E110: 6 | F110: 228;236;243 | G110: 化神期 | H110: 中 | I110: 6 | J110: 228 | K110: 236 | L110: 243 | M110: 23400 | N110: -1 | O110: -1 | P110: -1 | Q110: -1 | R110: -1 | S110: -1 | T110: 0 | U110: =[1]主表!I108 -> 346.3233333 | V110: =[1]主表!J108 -> 10.7 | W110: =[1]主表!K108 -> 10.7 | X110: =[1]主表!L108 -> 0 | Y110: =[1]主表!$G108 -> 2292 | Z110: =[1]升级!$H107 -> 800 | AA110: 20 | AB110: -1 | AC110: 4 | AD110: 3 | AE110: 4 | AF110: 1170 | AJ110: 1
A111: 107 | B111: 107 | C111: 4 | D111: 11 | E111: 7 | F111: 228;236;244 | G111: 化神期 | H111: 中 | I111: 7 | J111: 228 | K111: 236 | L111: 244 | M111: 23600 | N111: -1 | O111: -1 | P111: -1 | Q111: -1 | R111: -1 | S111: -1 | T111: 0 | U111: =[1]主表!I109 -> 353.4186667 | V111: =[1]主表!J109 -> 10.88 | W111: =[1]主表!K109 -> 10.88 | X111: =[1]主表!L109 -> 0 | Y111: =[1]主表!$G109 -> 2344 | Z111: =[1]升级!$H108 -> 800 | AA111: 20 | AB111: -1 | AC111: 4 | AD111: 3 | AE111: 4 | AF111: 1180 | AJ111: 1
A112: 108 | B112: 108 | C112: 4 | D112: 11 | E112: 8 | F112: 228;236;245 | G112: 化神期 | H112: 中 | I112: 8 | J112: 228 | K112: 236 | L112: 245 | M112: 23800 | N112: -1 | O112: -1 | P112: -1 | Q112: -1 | R112: -1 | S112: -1 | T112: 0 | U112: =[1]主表!I110 -> 359.904 | V112: =[1]主表!J110 -> 11.04 | W112: =[1]主表!K110 -> 11.04 | X112: =[1]主表!L110 -> 0 | Y112: =[1]主表!$G110 -> 2392 | Z112: =[1]升级!$H109 -> 800 | AA112: 20 | AB112: -1 | AC112: 4 | AD112: 3 | AE112: 4 | AF112: 1190 | AJ112: 1
A113: 109 | B113: 109 | C113: 4 | D113: 11 | E113: 9 | F113: 228;236;246 | G113: 化神期 | H113: 中 | I113: 9 | J113: 228 | K113: 236 | L113: 246 | M113: 24000 | N113: -1 | O113: -1 | P113: -1 | Q113: -1 | R113: -1 | S113: -1 | T113: 0 | U113: =[1]主表!I111 -> 367.7353333 | V113: =[1]主表!J111 -> 11.24 | W113: =[1]主表!K111 -> 11.24 | X113: =[1]主表!L111 -> 0 | Y113: =[1]主表!$G111 -> 2449 | Z113: =[1]升级!$H110 -> 800 | AA113: 20 | AB113: -1 | AC113: 4 | AD113: 3 | AE113: 4 | AF113: 1200 | AJ113: 1
A114: 110 | B114: 110 | C114: 4 | D114: 11 | E114: 10 | F114: 228;236;247 | G114: 化神期 | H114: 中 | I114: 10 | J114: 228 | K114: 236 | L114: 247 | M114: 24200 | N114: 100001 | O114: 20 | P114: 1301 | Q114: 1 | R114: 1301;1302 | S114: 1;1 | T114: 0 | U114: =[1]主表!I112 -> 393.3433333 | V114: =[1]主表!J112 -> 11.98 | W114: =[1]主表!K112 -> 11.98 | X114: =[1]主表!L112 -> 0 | Y114: =[1]主表!$G112 -> 2625 | Z114: =[1]升级!$H111 -> 800 | AA114: 20 | AB114: 20 | AC114: 4 | AD114: 3 | AE114: 4 | AF114: 1210 | AJ114: 1
A115: 111 | B115: 111 | C115: 4 | D115: 12 | E115: 1 | F115: 228;237;238 | G115: 化神期 | H115: 后 | I115: 1 | J115: 228 | K115: 237 | L115: 238 | M115: 25620 | N115: -1 | O115: -1 | P115: -1 | Q115: -1 | R115: =IF(I115=10,"1001;1002;1004",-1) -> -1 | S115: -1 | T115: 0 | U115: =[1]主表!I113 -> 400.672 | V115: =[1]主表!J113 -> 12.16 | W115: =[1]主表!K113 -> 12.16 | X115: =[1]主表!L113 -> 0 | Y115: =[1]主表!$G113 -> 2679 | Z115: =[1]升级!$H112 -> 800 | AA115: 21 | AB115: -1 | AC115: 4 | AD115: 3 | AE115: 4 | AF115: 1220 | AJ115: 1
A116: 112 | B116: 112 | C116: 4 | D116: 12 | E116: 2 | F116: 228;237;239 | G116: 化神期 | H116: 后 | I116: 2 | J116: 228 | K116: 237 | L116: 239 | M116: 25830 | N116: -1 | O116: -1 | P116: -1 | Q116: -1 | R116: -1 | S116: -1 | T116: 0 | U116: =[1]主表!I114 -> 408.704 | V116: =[1]主表!J114 -> 12.36 | W116: =[1]主表!K114 -> 12.36 | X116: =[1]主表!L114 -> 0 | Y116: =[1]主表!$G114 -> 2738 | Z116: =[1]升级!$H113 -> 800 | AA116: 21 | AB116: -1 | AC116: 4 | AD116: 3 | AE116: 4 | AF116: 1230 | AJ116: 1
A117: 113 | B117: 113 | C117: 4 | D117: 12 | E117: 3 | F117: 228;237;240 | G117: 化神期 | H117: 后 | I117: 3 | J117: 228 | K117: 237 | L117: 240 | M117: 26040 | N117: -1 | O117: -1 | P117: -1 | Q117: -1 | R117: -1 | S117: -1 | T117: 0 | U117: =[1]主表!I115 -> 417.4463333 | V117: =[1]主表!J115 -> 12.58 | W117: =[1]主表!K115 -> 12.58 | X117: =[1]主表!L115 -> 0 | Y117: =[1]主表!$G115 -> 2802 | Z117: =[1]升级!$H114 -> 800 | AA117: 21 | AB117: -1 | AC117: 4 | AD117: 3 | AE117: 4 | AF117: 1240 | AJ117: 1
A118: 114 | B118: 114 | C118: 4 | D118: 12 | E118: 4 | F118: 228;237;241 | G118: 化神期 | H118: 后 | I118: 4 | J118: 228 | K118: 237 | L118: 241 | M118: 26250 | N118: -1 | O118: -1 | P118: -1 | Q118: -1 | R118: -1 | S118: -1 | T118: 0 | U118: =[1]主表!I116 -> 425.574 | V118: =[1]主表!J116 -> 12.78 | W118: =[1]主表!K116 -> 12.78 | X118: =[1]主表!L116 -> 0 | Y118: =[1]主表!$G116 -> 2862 | Z118: =[1]升级!$H115 -> 800 | AA118: 21 | AB118: -1 | AC118: 4 | AD118: 3 | AE118: 4 | AF118: 1250 | AJ118: 1
A119: 115 | B119: 115 | C119: 4 | D119: 12 | E119: 5 | F119: 228;237;242 | G119: 化神期 | H119: 后 | I119: 5 | J119: 228 | K119: 237 | L119: 242 | M119: 26460 | N119: -1 | O119: -1 | P119: -1 | Q119: -1 | R119: -1 | S119: -1 | T119: 0 | U119: =[1]主表!I117 -> 434.4166667 | V119: =[1]主表!J117 -> 13 | W119: =[1]主表!K117 -> 13 | X119: =[1]主表!L117 -> 0 | Y119: =[1]主表!$G117 -> 2927 | Z119: =[1]升级!$H116 -> 800 | AA119: 21 | AB119: -1 | AC119: 4 | AD119: 3 | AE119: 4 | AF119: 1260 | AJ119: 1
A120: 116 | B120: 116 | C120: 4 | D120: 12 | E120: 6 | F120: 228;237;243 | G120: 化神期 | H120: 后 | I120: 6 | J120: 228 | K120: 237 | L120: 243 | M120: 26670 | N120: -1 | O120: -1 | P120: -1 | Q120: -1 | R120: -1 | S120: -1 | T120: 0 | U120: =[1]主表!I118 -> 442.64 | V120: =[1]主表!J118 -> 13.2 | W120: =[1]主表!K118 -> 13.2 | X120: =[1]主表!L118 -> 0 | Y120: =[1]主表!$G118 -> 2988 | Z120: =[1]升级!$H117 -> 800 | AA120: 21 | AB120: -1 | AC120: 4 | AD120: 3 | AE120: 4 | AF120: 1270 | AJ120: 1
A121: 117 | B121: 117 | C121: 4 | D121: 12 | E121: 7 | F121: 228;237;244 | G121: 化神期 | H121: 后 | I121: 7 | J121: 228 | K121: 237 | L121: 244 | M121: 26880 | N121: -1 | O121: -1 | P121: -1 | Q121: -1 | R121: -1 | S121: -1 | T121: 0 | U121: =[1]主表!I119 -> 451.583 | V121: =[1]主表!J119 -> 13.42 | W121: =[1]主表!K119 -> 13.42 | X121: =[1]主表!L119 -> 0 | Y121: =[1]主表!$G119 -> 3054 | Z121: =[1]升级!$H118 -> 800 | AA121: 21 | AB121: -1 | AC121: 4 | AD121: 3 | AE121: 4 | AF121: 1280 | AJ121: 1
A122: 118 | B122: 118 | C122: 4 | D122: 12 | E122: 8 | F122: 228;237;245 | G122: 化神期 | H122: 后 | I122: 8 | J122: 228 | K122: 237 | L122: 245 | M122: 27090 | N122: -1 | O122: -1 | P122: -1 | Q122: -1 | R122: -1 | S122: -1 | T122: 0 | U122: =[1]主表!I120 -> 460.5773333 | V122: =[1]主表!J120 -> 13.64 | W122: =[1]主表!K120 -> 13.64 | X122: =[1]主表!L120 -> 0 | Y122: =[1]主表!$G120 -> 3120 | Z122: =[1]升级!$H119 -> 800 | AA122: 21 | AB122: -1 | AC122: 4 | AD122: 3 | AE122: 4 | AF122: 1290 | AJ122: 1
A123: 119 | B123: 119 | C123: 4 | D123: 12 | E123: 9 | F123: 228;237;246 | G123: 化神期 | H123: 后 | I123: 9 | J123: 228 | K123: 237 | L123: 246 | M123: 27300 | N123: -1 | O123: -1 | P123: -1 | Q123: -1 | R123: -1 | S123: -1 | T123: 0 | U123: =[1]主表!I121 -> 469.623 | V123: =[1]主表!J121 -> 13.86 | W123: =[1]主表!K121 -> 13.86 | X123: =[1]主表!L121 -> 0 | Y123: =[1]主表!$G121 -> 3188 | Z123: =[1]升级!$H120 -> 800 | AA123: 21 | AB123: -1 | AC123: 4 | AD123: 3 | AE123: 4 | AF123: 1300 | AJ123: 1
A124: 120 | B124: 120 | C124: 4 | D124: 12 | E124: 10 | F124: 228;237;247 | G124: 化神期 | H124: 后 | I124: 10 | J124: 228 | K124: 237 | L124: 247 | M124: 27510 | N124: 100001 | O124: 20 | P124: 1301 | Q124: 1 | R124: 1301;1302;1303 | S124: 1;1;1 | T124: 12000;18000 | U124: =[1]主表!I122 -> 533.8 | V124: =[1]主表!J122 -> 15.7 | W124: =[1]主表!K122 -> 15.7 | X124: =[1]主表!L122 -> 0 | Y124: =[1]主表!$G122 -> 3630 | Z124: =[1]升级!$H121 -> 900 | AA124: 21 | AB124: 50 | AC124: 4 | AD124: 3 | AE124: 4 | AF124: 1310 | AJ124: 1
A125: 121 | B125: 121 | C125: 5 | D125: 13 | E125: 1 | F125: 229;235;238 | G125: 炼虚期 | H125: 前 | I125: 1 | J125: 229 | K125: 235 | L125: 238 | M125: 29040 | N125: -1 | O125: -1 | P125: -1 | Q125: -1 | R125: =IF(I125=10,"1001;1002;1004",-1) -> -1 | S125: =IF(R125=-1,-1,"100;200;300") -> -1 | T125: =IF(G125=G126,0,CONCATENATE(B125*100,";",B125*150)) -> 0 | U125: =[1]主表!I123 -> 544.502 | V125: =[1]主表!J123 -> 15.96 | W125: =[1]主表!K123 -> 15.96 | X125: =[1]主表!L123 -> 0 | Y125: =[1]主表!$G123 -> 3706 | Z125: =[1]升级!$H122 -> 900 | AA125: 22 | AB125: -1 | AC125: 4 | AD125: 3 | AE125: 4 | AF125: 1320 | AJ125: 1
A126: 122 | B126: 122 | C126: 5 | D126: 13 | E126: 2 | F126: 229;235;239 | G126: 炼虚期 | H126: 前 | I126: 2 | J126: 229 | K126: 235 | L126: 239 | M126: 29260 | N126: -1 | O126: -1 | P126: -1 | Q126: -1 | R126: =IF(I126=10,"1001;1002;1004",-1) -> -1 | S126: =IF(R126=-1,-1,"100;200;300") -> -1 | T126: =IF(G126=G127,0,CONCATENATE(B126*100,";",B126*150)) -> 0 | U126: =[1]主表!I124 -> 555.2646667 | V126: =[1]主表!J124 -> 16.22 | W126: =[1]主表!K124 -> 16.22 | X126: =[1]主表!L124 -> 0 | Y126: =[1]主表!$G124 -> 3784 | Z126: =[1]升级!$H123 -> 900 | AA126: 22 | AB126: -1 | AC126: 4 | AD126: 3 | AE126: 4 | AF126: 1330 | AJ126: 1
A127: 123 | B127: 123 | C127: 5 | D127: 13 | E127: 3 | F127: 229;235;240 | G127: 炼虚期 | H127: 前 | I127: 3 | J127: 229 | K127: 235 | L127: 240 | M127: 29480 | N127: -1 | O127: -1 | P127: -1 | Q127: -1 | R127: -1 | S127: -1 | T127: 0 | U127: =[1]主表!I125 -> 566.088 | V127: =[1]主表!J125 -> 16.48 | W127: =[1]主表!K125 -> 16.48 | X127: =[1]主表!L125 -> 0 | Y127: =[1]主表!$G125 -> 3861 | Z127: =[1]升级!$H124 -> 900 | AA127: 22 | AB127: -1 | AC127: 4 | AD127: 3 | AE127: 4 | AF127: 1340 | AJ127: 1
A128: 124 | B128: 124 | C128: 5 | D128: 13 | E128: 4 | F128: 229;235;241 | G128: 炼虚期 | H128: 前 | I128: 4 | J128: 229 | K128: 235 | L128: 241 | M128: 29700 | N128: -1 | O128: -1 | P128: -1 | Q128: -1 | R128: -1 | S128: -1 | T128: 0 | U128: =[1]主表!I126 -> 577.6613333 | V128: =[1]主表!J126 -> 16.76 | W128: =[1]主表!K126 -> 16.76 | X128: =[1]主表!L126 -> 0 | Y128: =[1]主表!$G126 -> 3944 | Z128: =[1]升级!$H125 -> 900 | AA128: 22 | AB128: -1 | AC128: 4 | AD128: 3 | AE128: 4 | AF128: 1350 | AJ128: 1
A129: 125 | B129: 125 | C129: 5 | D129: 13 | E129: 5 | F129: 229;235;242 | G129: 炼虚期 | H129: 前 | I129: 5 | J129: 229 | K129: 235 | L129: 242 | M129: 29920 | N129: -1 | O129: -1 | P129: -1 | Q129: -1 | R129: -1 | S129: -1 | T129: 0 | U129: =[1]主表!I127 -> 588.6083333 | V129: =[1]主表!J127 -> 17.02 | W129: =[1]主表!K127 -> 17.02 | X129: =[1]主表!L127 -> 0 | Y129: =[1]主表!$G127 -> 4023 | Z129: =[1]升级!$H126 -> 900 | AA129: 22 | AB129: -1 | AC129: 4 | AD129: 3 | AE129: 4 | AF129: 1360 | AJ129: 1
A130: 126 | B130: 126 | C130: 5 | D130: 13 | E130: 6 | F130: 229;235;243 | G130: 炼虚期 | H130: 前 | I130: 6 | J130: 229 | K130: 235 | L130: 243 | M130: 30140 | N130: -1 | O130: -1 | P130: -1 | Q130: -1 | R130: -1 | S130: -1 | T130: 0 | U130: =[1]主表!I128 -> 601.004 | V130: =[1]主表!J128 -> 17.32 | W130: =[1]主表!K128 -> 17.32 | X130: =[1]主表!L128 -> 0 | Y130: =[1]主表!$G128 -> 4108 | Z130: =[1]升级!$H127 -> 900 | AA130: 22 | AB130: -1 | AC130: 4 | AD130: 3 | AE130: 4 | AF130: 1370 | AJ130: 1
A131: 127 | B131: 127 | C131: 5 | D131: 13 | E131: 7 | F131: 229;235;244 | G131: 炼虚期 | H131: 前 | I131: 7 | J131: 229 | K131: 235 | L131: 244 | M131: 30360 | N131: -1 | O131: -1 | P131: -1 | Q131: -1 | R131: -1 | S131: -1 | T131: 0 | U131: =[1]主表!I129 -> 612.7733333 | V131: =[1]主表!J129 -> 17.6 | W131: =[1]主表!K129 -> 17.6 | X131: =[1]主表!L129 -> 0 | Y131: =[1]主表!$G129 -> 4190 | Z131: =[1]升级!$H128 -> 900 | AA131: 22 | AB131: -1 | AC131: 4 | AD131: 3 | AE131: 4 | AF131: 1380 | AJ131: 1
A132: 128 | B132: 128 | C132: 5 | D132: 13 | E132: 8 | F132: 229;235;245 | G132: 炼虚期 | H132: 前 | I132: 8 | J132: 229 | K132: 235 | L132: 245 | M132: 30580 | N132: -1 | O132: -1 | P132: -1 | Q132: -1 | R132: -1 | S132: -1 | T132: 0 | U132: =[1]主表!I130 -> 624.608 | V132: =[1]主表!J130 -> 17.88 | W132: =[1]主表!K130 -> 17.88 | X132: =[1]主表!L130 -> 0 | Y132: =[1]主表!$G130 -> 4271 | Z132: =[1]升级!$H129 -> 900 | AA132: 22 | AB132: -1 | AC132: 4 | AD132: 3 | AE132: 4 | AF132: 1390 | AJ132: 1
A133: 129 | B133: 129 | C133: 5 | D133: 13 | E133: 9 | F133: 229;235;246 | G133: 炼虚期 | H133: 前 | I133: 9 | J133: 229 | K133: 235 | L133: 246 | M133: 30800 | N133: -1 | O133: -1 | P133: -1 | Q133: -1 | R133: -1 | S133: -1 | T133: 0 | U133: =[1]主表!I131 -> 637.209 | V133: =[1]主表!J131 -> 18.18 | W133: =[1]主表!K131 -> 18.18 | X133: =[1]主表!L131 -> 0 | Y133: =[1]主表!$G131 -> 4358 | Z133: =[1]升级!$H130 -> 900 | AA133: 22 | AB133: -1 | AC133: 4 | AD133: 3 | AE133: 4 | AF133: 1400 | AJ133: 1
A134: 130 | B134: 130 | C134: 5 | D134: 13 | E134: =I134 -> 10 | F134: =_xlfn.TEXTJOIN(";",1,J134:L134) -> 229;235;247 | G134: 炼虚期 | H134: 前 | I134: 10 | J134: 229 | K134: 235 | L134: 247 | M134: =INT(0.1*AA134*AF134)*10 -> 31020 | N134: =IF(I134=10,100001,-1) -> 100001 | O134: =IF(N134=-1,-1,20) -> 20 | P134: 1301 | Q134: 1 | R134: 1301 | S134: 1 | T134: 0 | U134: =[1]主表!I132 -> 681.53 | V134: =[1]主表!J132 -> 19.38 | W134: =[1]主表!K132 -> 19.38 | X134: =[1]主表!L132 -> 0 | Y134: =[1]主表!$G132 -> 4662 | Z134: =[1]升级!$H131 -> 900 | AA134: 22 | AB134: 20 | AC134: 4 | AD134: 3 | AE134: 4 | AF134: =MAX(AF133+10,ROUND(10^(B134*0.01+1.405),0)) -> 1410 | AJ134: 1
A135: 131 | B135: 131 | C135: 5 | D135: 14 | E135: 1 | F135: 229;236;238 | G135: 炼虚期 | H135: 中 | I135: 1 | J135: 229 | K135: 236 | L135: 238 | M135: 32660 | N135: -1 | O135: -1 | P135: -1 | Q135: -1 | R135: =IF(I135=10,"1001;1002;1004",-1) -> -1 | S135: -1 | T135: 0 | U135: =[1]主表!I133 -> 695.0816667 | V135: =[1]主表!J133 -> 19.7 | W135: =[1]主表!K133 -> 19.7 | X135: =[1]主表!L133 -> 0 | Y135: =[1]主表!$G133 -> 4755 | Z135: =[1]升级!$H132 -> 900 | AA135: 23 | AB135: -1 | AC135: 4 | AD135: 3 | AE135: 4 | AF135: 1420 | AJ135: 1
A136: 132 | B136: 132 | C136: 5 | D136: 14 | E136: 2 | F136: 229;236;239 | G136: 炼虚期 | H136: 中 | I136: 2 | J136: 229 | K136: 236 | L136: 239 | M136: 32890 | N136: -1 | O136: -1 | P136: -1 | Q136: -1 | R136: -1 | S136: -1 | T136: 0 | U136: =[1]主表!I134 -> 708.708 | V136: =[1]主表!J134 -> 20.02 | W136: =[1]主表!K134 -> 20.02 | X136: =[1]主表!L134 -> 0 | Y136: =[1]主表!$G134 -> 4849 | Z136: =[1]升级!$H133 -> 900 | AA136: 23 | AB136: -1 | AC136: 4 | AD136: 3 | AE136: 4 | AF136: 1430 | AJ136: 1
A137: 133 | B137: 133 | C137: 5 | D137: 14 | E137: 3 | F137: 229;236;240 | G137: 炼虚期 | H137: 中 | I137: 3 | J137: 229 | K137: 236 | L137: 240 | M137: 33120 | N137: -1 | O137: -1 | P137: -1 | Q137: -1 | R137: -1 | S137: -1 | T137: 0 | U137: =[1]主表!I135 -> 723.1193333 | V137: =[1]主表!J135 -> 20.36 | W137: =[1]主表!K135 -> 20.36 | X137: =[1]主表!L135 -> 0 | Y137: =[1]主表!$G135 -> 4949 | Z137: =[1]升级!$H134 -> 900 | AA137: 23 | AB137: -1 | AC137: 4 | AD137: 3 | AE137: 4 | AF137: 1440 | AJ137: 1
A138: 134 | B138: 134 | C138: 5 | D138: 14 | E138: 4 | F138: 229;236;241 | G138: 炼虚期 | H138: 中 | I138: 4 | J138: 229 | K138: 236 | L138: 241 | M138: 33350 | N138: -1 | O138: -1 | P138: -1 | Q138: -1 | R138: -1 | S138: -1 | T138: 0 | U138: =[1]主表!I136 -> 736.8973333 | V138: =[1]主表!J136 -> 20.68 | W138: =[1]主表!K136 -> 20.68 | X138: =[1]主表!L136 -> 0 | Y138: =[1]主表!$G136 -> 5044 | Z138: =[1]升级!$H135 -> 900 | AA138: 23 | AB138: -1 | AC138: 4 | AD138: 3 | AE138: 4 | AF138: 1450 | AJ138: 1
A139: 135 | B139: 135 | C139: 5 | D139: 14 | E139: 5 | F139: 229;236;242 | G139: 炼虚期 | H139: 中 | I139: 5 | J139: 229 | K139: 236 | L139: 242 | M139: 33580 | N139: -1 | O139: -1 | P139: -1 | Q139: -1 | R139: -1 | S139: -1 | T139: 0 | U139: =[1]主表!I137 -> 751.465 | V139: =[1]主表!J137 -> 21.02 | W139: =[1]主表!K137 -> 21.02 | X139: =[1]主表!L137 -> 0 | Y139: =[1]主表!$G137 -> 5144 | Z139: =[1]升级!$H136 -> 900 | AA139: 23 | AB139: -1 | AC139: 4 | AD139: 3 | AE139: 4 | AF139: 1460 | AJ139: 1
A140: 136 | B140: 136 | C140: 5 | D140: 14 | E140: 6 | F140: 229;236;243 | G140: 炼虚期 | H140: 中 | I140: 6 | J140: 229 | K140: 236 | L140: 243 | M140: 33810 | N140: -1 | O140: -1 | P140: -1 | Q140: -1 | R140: -1 | S140: -1 | T140: 0 | U140: =[1]主表!I138 -> 766.8293333 | V140: =[1]主表!J138 -> 21.38 | W140: =[1]主表!K138 -> 21.38 | X140: =[1]主表!L138 -> 0 | Y140: =[1]主表!$G138 -> 5250 | Z140: =[1]升级!$H137 -> 900 | AA140: 23 | AB140: -1 | AC140: 4 | AD140: 3 | AE140: 4 | AF140: 1470 | AJ140: 1
A141: 137 | B141: 137 | C141: 5 | D141: 14 | E141: 7 | F141: 229;236;244 | G141: 炼虚期 | H141: 中 | I141: 7 | J141: 229 | K141: 236 | L141: 244 | M141: 34040 | N141: -1 | O141: -1 | P141: -1 | Q141: -1 | R141: -1 | S141: -1 | T141: 0 | U141: =[1]主表!I139 -> 781.558 | V141: =[1]主表!J139 -> 21.72 | W141: =[1]主表!K139 -> 21.72 | X141: =[1]主表!L139 -> 0 | Y141: =[1]主表!$G139 -> 5352 | Z141: =[1]升级!$H138 -> 900 | AA141: 23 | AB141: -1 | AC141: 4 | AD141: 3 | AE141: 4 | AF141: 1480 | AJ141: 1
A142: 138 | B142: 138 | C142: 5 | D142: 14 | E142: 8 | F142: 229;236;245 | G142: 炼虚期 | H142: 中 | I142: 8 | J142: 229 | K142: 236 | L142: 245 | M142: 34270 | N142: -1 | O142: -1 | P142: -1 | Q142: -1 | R142: -1 | S142: -1 | T142: 0 | U142: =[1]主表!I140 -> 797.088 | V142: =[1]主表!J140 -> 22.08 | W142: =[1]主表!K140 -> 22.08 | X142: =[1]主表!L140 -> 0 | Y142: =[1]主表!$G140 -> 5459 | Z142: =[1]升级!$H139 -> 900 | AA142: 23 | AB142: -1 | AC142: 4 | AD142: 3 | AE142: 4 | AF142: 1490 | AJ142: 1
A143: 139 | B143: 139 | C143: 5 | D143: 14 | E143: 9 | F143: 229;236;246 | G143: 炼虚期 | H143: 中 | I143: 9 | J143: 229 | K143: 236 | L143: 246 | M143: 34500 | N143: -1 | O143: -1 | P143: -1 | Q143: -1 | R143: -1 | S143: -1 | T143: 0 | U143: =[1]主表!I141 -> 812.702 | V143: =[1]主表!J141 -> 22.44 | W143: =[1]主表!K141 -> 22.44 | X143: =[1]主表!L141 -> 0 | Y143: =[1]主表!$G141 -> 5567 | Z143: =[1]升级!$H140 -> 900 | AA143: 23 | AB143: -1 | AC143: 4 | AD143: 3 | AE143: 4 | AF143: 1500 | AJ143: 1
A144: 140 | B144: 140 | C144: 5 | D144: 14 | E144: 10 | F144: 229;236;247 | G144: 炼虚期 | H144: 中 | I144: 10 | J144: 229 | K144: 236 | L144: 247 | M144: 34730 | N144: 100001 | O144: 20 | P144: 1301 | Q144: 1 | R144: 1301;1302 | S144: 1;1 | T144: 0 | U144: =[1]主表!I142 -> 869.0933333 | V144: =[1]主表!J142 -> 23.92 | W144: =[1]主表!K142 -> 23.92 | X144: =[1]主表!L142 -> 0 | Y144: =[1]主表!$G142 -> 5954 | Z144: =[1]升级!$H141 -> 900 | AA144: 23 | AB144: 20 | AC144: 4 | AD144: 3 | AE144: 4 | AF144: 1510 | AJ144: 1
A145: 141 | B145: 141 | C145: 5 | D145: 15 | E145: 1 | F145: 229;237;238 | G145: 炼虚期 | H145: 后 | I145: 1 | J145: 229 | K145: 237 | L145: 238 | M145: 36480 | N145: -1 | O145: -1 | P145: -1 | Q145: -1 | R145: =IF(I145=10,"1001;1002;1004",-1) -> -1 | S145: -1 | T145: 0 | U145: =[1]主表!I143 -> 886.464 | V145: =[1]主表!J143 -> 24.32 | W145: =[1]主表!K143 -> 24.32 | X145: =[1]主表!L143 -> 0 | Y145: =[1]主表!$G143 -> 6074 | Z145: =[1]升级!$H142 -> 900 | AA145: 24 | AB145: -1 | AC145: 4 | AD145: 3 | AE145: 4 | AF145: 1520 | AJ145: 1
A146: 142 | B146: 142 | C146: 5 | D146: 15 | E146: 2 | F146: 229;237;239 | G146: 炼虚期 | H146: 后 | I146: 2 | J146: 229 | K146: 237 | L146: 239 | M146: 36720 | N146: -1 | O146: -1 | P146: -1 | Q146: -1 | R146: -1 | S146: -1 | T146: 0 | U146: =[1]主表!I144 -> 903.928 | V146: =[1]主表!J144 -> 24.72 | W146: =[1]主表!K144 -> 24.72 | X146: =[1]主表!L144 -> 0 | Y146: =[1]主表!$G144 -> 6195 | Z146: =[1]升级!$H143 -> 900 | AA146: 24 | AB146: -1 | AC146: 4 | AD146: 3 | AE146: 4 | AF146: 1530 | AJ146: 1
A147: 143 | B147: 143 | C147: 5 | D147: 15 | E147: 3 | F147: 229;237;240 | G147: 炼虚期 | H147: 后 | I147: 3 | J147: 229 | K147: 237 | L147: 240 | M147: 36960 | N147: -1 | O147: -1 | P147: -1 | Q147: -1 | R147: -1 | S147: -1 | T147: 0 | U147: =[1]主表!I145 -> 921.4853333 | V147: =[1]主表!J145 -> 25.12 | W147: =[1]主表!K145 -> 25.12 | X147: =[1]主表!L145 -> 0 | Y147: =[1]主表!$G145 -> 6316 | Z147: =[1]升级!$H144 -> 900 | AA147: 24 | AB147: -1 | AC147: 4 | AD147: 3 | AE147: 4 | AF147: 1540 | AJ147: 1
A148: 144 | B148: 144 | C148: 5 | D148: 15 | E148: 4 | F148: 229;237;241 | G148: 炼虚期 | H148: 后 | I148: 4 | J148: 229 | K148: 237 | L148: 241 | M148: 37200 | N148: -1 | O148: -1 | P148: -1 | Q148: -1 | R148: -1 | S148: -1 | T148: 0 | U148: =[1]主表!I146 -> 939.872 | V148: =[1]主表!J146 -> 25.54 | W148: =[1]主表!K146 -> 25.54 | X148: =[1]主表!L146 -> 0 | Y148: =[1]主表!$G146 -> 6443 | Z148: =[1]升级!$H145 -> 900 | AA148: 24 | AB148: -1 | AC148: 4 | AD148: 3 | AE148: 4 | AF148: 1550 | AJ148: 1
A149: 145 | B149: 145 | C149: 5 | D149: 15 | E149: 5 | F149: 229;237;242 | G149: 炼虚期 | H149: 后 | I149: 5 | J149: 229 | K149: 237 | L149: 242 | M149: 37440 | N149: -1 | O149: -1 | P149: -1 | Q149: -1 | R149: -1 | S149: -1 | T149: 0 | U149: =[1]主表!I147 -> 958.3566667 | V149: =[1]主表!J147 -> 25.96 | W149: =[1]主表!K147 -> 25.96 | X149: =[1]主表!L147 -> 0 | Y149: =[1]主表!$G147 -> 6570 | Z149: =[1]升级!$H146 -> 900 | AA149: 24 | AB149: -1 | AC149: 4 | AD149: 3 | AE149: 4 | AF149: 1560 | AJ149: 1
A150: 146 | B150: 146 | C150: 5 | D150: 15 | E150: 6 | F150: 229;237;243 | G150: 炼虚期 | H150: 后 | I150: 6 | J150: 229 | K150: 237 | L150: 243 | M150: 37680 | N150: -1 | O150: -1 | P150: -1 | Q150: -1 | R150: -1 | S150: -1 | T150: 0 | U150: =[1]主表!I148 -> 976.9393333 | V150: =[1]主表!J148 -> 26.38 | W150: =[1]主表!K148 -> 26.38 | X150: =[1]主表!L148 -> 0 | Y150: =[1]主表!$G148 -> 6699 | Z150: =[1]升级!$H147 -> 900 | AA150: 24 | AB150: -1 | AC150: 4 | AD150: 3 | AE150: 4 | AF150: 1570 | AJ150: 1
A151: 147 | B151: 147 | C151: 5 | D151: 15 | E151: 7 | F151: 229;237;244 | G151: 炼虚期 | H151: 后 | I151: 7 | J151: 229 | K151: 237 | L151: 244 | M151: 37920 | N151: -1 | O151: -1 | P151: -1 | Q151: -1 | R151: -1 | S151: -1 | T151: 0 | U151: =[1]主表!I149 -> 996.363 | V151: =[1]主表!J149 -> 26.82 | W151: =[1]主表!K149 -> 26.82 | X151: =[1]主表!L149 -> 0 | Y151: =[1]主表!$G149 -> 6833 | Z151: =[1]升级!$H148 -> 900 | AA151: 24 | AB151: -1 | AC151: 4 | AD151: 3 | AE151: 4 | AF151: 1580 | AJ151: 1
A152: 148 | B152: 148 | C152: 5 | D152: 15 | E152: 8 | F152: 229;237;245 | G152: 炼虚期 | H152: 后 | I152: 8 | J152: 229 | K152: 237 | L152: 245 | M152: 38160 | N152: -1 | O152: -1 | P152: -1 | Q152: -1 | R152: -1 | S152: -1 | T152: 0 | U152: =[1]主表!I150 -> 1015.889333 | V152: =[1]主表!J150 -> 27.26 | W152: =[1]主表!K150 -> 27.26 | X152: =[1]主表!L150 -> 0 | Y152: =[1]主表!$G150 -> 6968 | Z152: =[1]升级!$H149 -> 900 | AA152: 24 | AB152: -1 | AC152: 4 | AD152: 3 | AE152: 4 | AF152: 1590 | AJ152: 1
A153: 149 | B153: 149 | C153: 5 | D153: 15 | E153: 9 | F153: 229;237;246 | G153: 炼虚期 | H153: 后 | I153: 9 | J153: 229 | K153: 237 | L153: 246 | M153: 38400 | N153: -1 | O153: -1 | P153: -1 | Q153: -1 | R153: -1 | S153: -1 | T153: 0 | U153: =[1]主表!I151 -> 1036.266 | V153: =[1]主表!J151 -> 27.72 | W153: =[1]主表!K151 -> 27.72 | X153: =[1]主表!L151 -> 0 | Y153: =[1]主表!$G151 -> 7109 | Z153: =[1]升级!$H150 -> 900 | AA153: 24 | AB153: -1 | AC153: 4 | AD153: 3 | AE153: 4 | AF153: 1600 | AJ153: 1
A154: 150 | B154: 150 | C154: 5 | D154: 15 | E154: 10 | F154: 229;237;247 | G154: 炼虚期 | H154: 后 | I154: 10 | J154: 229 | K154: 237 | L154: 247 | M154: 38640 | N154: 100001 | O154: 20 | P154: 1301 | Q154: 1 | R154: 1301;1302;1303 | S154: 1;1;1 | T154: 15000;22500 | U154: =[1]主表!I152 -> 1176 | V154: =[1]主表!J152 -> 31.36 | W154: =[1]主表!K152 -> 31.36 | X154: =[1]主表!L152 -> 0 | Y154: =[1]主表!$G152 -> 8068 | Z154: =[1]升级!$H151 -> 1000 | AA154: 24 | AB154: 50 | AC154: 4 | AD154: 3 | AE154: 4 | AF154: 1610 | AJ154: 1
A155: 151 | B155: 151 | C155: 6 | D155: 16 | E155: 1 | F155: 230;235;238 | G155: 合体期 | H155: 前 | I155: 1 | J155: 230 | K155: 235 | L155: 238 | M155: 40500 | N155: -1 | O155: -1 | P155: -1 | Q155: -1 | R155: =IF(I155=10,"1001;1002;1004",-1) -> -1 | S155: =IF(R155=-1,-1,"100;200;300") -> -1 | T155: =IF(G155=G156,0,CONCATENATE(B155*100,";",B155*150)) -> 0 | U155: =[1]主表!I153 -> 1199.219333 | V155: =[1]主表!J153 -> 31.88 | W155: =[1]主表!K153 -> 31.88 | X155: =[1]主表!L153 -> 0 | Y155: =[1]主表!$G153 -> 8229 | Z155: =[1]升级!$H152 -> 1000 | AA155: 25 | AB155: -1 | AC155: 4 | AD155: 3 | AE155: 4 | AF155: 1620 | AJ155: 1
A156: 152 | B156: 152 | C156: 6 | D156: 16 | E156: 2 | F156: 230;235;239 | G156: 合体期 | H156: 前 | I156: 2 | J156: 230 | K156: 235 | L156: 239 | M156: 40750 | N156: -1 | O156: -1 | P156: -1 | Q156: -1 | R156: =IF(I156=10,"1001;1002;1004",-1) -> -1 | S156: =IF(R156=-1,-1,"100;200;300") -> -1 | T156: =IF(G156=G157,0,CONCATENATE(B156*100,";",B156*150)) -> 0 | U156: =[1]主表!I154 -> 1222.56 | V156: =[1]主表!J154 -> 32.4 | W156: =[1]主表!K154 -> 32.4 | X156: =[1]主表!L154 -> 0 | Y156: =[1]主表!$G154 -> 8390 | Z156: =[1]升级!$H153 -> 1000 | AA156: 25 | AB156: -1 | AC156: 4 | AD156: 3 | AE156: 4 | AF156: 1630 | AJ156: 1
A157: 153 | B157: 153 | C157: 6 | D157: 16 | E157: 3 | F157: 230;235;240 | G157: 合体期 | H157: 前 | I157: 3 | J157: 230 | K157: 235 | L157: 240 | M157: 41000 | N157: -1 | O157: -1 | P157: -1 | Q157: -1 | R157: -1 | S157: -1 | T157: 0 | U157: =[1]主表!I155 -> 1246.779 | V157: =[1]主表!J155 -> 32.94 | W157: =[1]主表!K155 -> 32.94 | X157: =[1]主表!L155 -> 0 | Y157: =[1]主表!$G155 -> 8557 | Z157: =[1]升级!$H154 -> 1000 | AA157: 25 | AB157: -1 | AC157: 4 | AD157: 3 | AE157: 4 | AF157: 1640 | AJ157: 1
A158: 154 | B158: 154 | C158: 6 | D158: 16 | E158: 4 | F158: 230;235;241 | G158: 合体期 | H158: 前 | I158: 4 | J158: 230 | K158: 235 | L158: 241 | M158: 41250 | N158: -1 | O158: -1 | P158: -1 | Q158: -1 | R158: -1 | S158: -1 | T158: 0 | U158: =[1]主表!I156 -> 1271.124 | V158: =[1]主表!J156 -> 33.48 | W158: =[1]主表!K156 -> 33.48 | X158: =[1]主表!L156 -> 0 | Y158: =[1]主表!$G156 -> 8726 | Z158: =[1]升级!$H155 -> 1000 | AA158: 25 | AB158: -1 | AC158: 4 | AD158: 3 | AE158: 4 | AF158: 1650 | AJ158: 1
A159: 155 | B159: 155 | C159: 6 | D159: 16 | E159: 5 | F159: 230;235;242 | G159: 合体期 | H159: 前 | I159: 5 | J159: 230 | K159: 235 | L159: 242 | M159: 41500 | N159: -1 | O159: -1 | P159: -1 | Q159: -1 | R159: -1 | S159: -1 | T159: 0 | U159: =[1]主表!I157 -> 1296.356667 | V159: =[1]主表!J157 -> 34.04 | W159: =[1]主表!K157 -> 34.04 | X159: =[1]主表!L157 -> 0 | Y159: =[1]主表!$G157 -> 8900 | Z159: =[1]升级!$H156 -> 1000 | AA159: 25 | AB159: -1 | AC159: 4 | AD159: 3 | AE159: 4 | AF159: 1660 | AJ159: 1
A160: 156 | B160: 156 | C160: 6 | D160: 16 | E160: 6 | F160: 230;235;243 | G160: 合体期 | H160: 前 | I160: 6 | J160: 230 | K160: 235 | L160: 243 | M160: 41750 | N160: -1 | O160: -1 | P160: -1 | Q160: -1 | R160: -1 | S160: -1 | T160: 0 | U160: =[1]主表!I158 -> 1321.72 | V160: =[1]主表!J158 -> 34.6 | W160: =[1]主表!K158 -> 34.6 | X160: =[1]主表!L158 -> 0 | Y160: =[1]主表!$G158 -> 9075 | Z160: =[1]升级!$H157 -> 1000 | AA160: 25 | AB160: -1 | AC160: 4 | AD160: 3 | AE160: 4 | AF160: 1670 | AJ160: 1
A161: 157 | B161: 157 | C161: 6 | D161: 16 | E161: 7 | F161: 230;235;244 | G161: 合体期 | H161: 前 | I161: 7 | J161: 230 | K161: 235 | L161: 244 | M161: 42000 | N161: -1 | O161: -1 | P161: -1 | Q161: -1 | R161: -1 | S161: -1 | T161: 0 | U161: =[1]主表!I159 -> 1347.214 | V161: =[1]主表!J159 -> 35.16 | W161: =[1]主表!K159 -> 35.16 | X161: =[1]主表!L159 -> 0 | Y161: =[1]主表!$G159 -> 9252 | Z161: =[1]升级!$H158 -> 1000 | AA161: 25 | AB161: -1 | AC161: 4 | AD161: 3 | AE161: 4 | AF161: 1680 | AJ161: 1
A162: 158 | B162: 158 | C162: 6 | D162: 16 | E162: 8 | F162: 230;235;245 | G162: 合体期 | H162: 前 | I162: 8 | J162: 230 | K162: 235 | L162: 245 | M162: 42250 | N162: -1 | O162: -1 | P162: -1 | Q162: -1 | R162: -1 | S162: -1 | T162: 0 | U162: =[1]主表!I160 -> 1373.607333 | V162: =[1]主表!J160 -> 35.74 | W162: =[1]主表!K160 -> 35.74 | X162: =[1]主表!L160 -> 0 | Y162: =[1]主表!$G160 -> 9434 | Z162: =[1]升级!$H159 -> 1000 | AA162: 25 | AB162: -1 | AC162: 4 | AD162: 3 | AE162: 4 | AF162: 1690 | AJ162: 1
A163: 159 | B163: 159 | C163: 6 | D163: 16 | E163: 9 | F163: 230;235;246 | G163: 合体期 | H163: 前 | I163: 9 | J163: 230 | K163: 235 | L163: 246 | M163: 42500 | N163: -1 | O163: -1 | P163: -1 | Q163: -1 | R163: -1 | S163: -1 | T163: 0 | U163: =[1]主表!I161 -> 1400.907 | V163: =[1]主表!J161 -> 36.34 | W163: =[1]主表!K161 -> 36.34 | X163: =[1]主表!L161 -> 0 | Y163: =[1]主表!$G161 -> 9623 | Z163: =[1]升级!$H160 -> 1000 | AA163: 25 | AB163: -1 | AC163: 4 | AD163: 3 | AE163: 4 | AF163: 1700 | AJ163: 1
A164: 160 | B164: 160 | C164: 6 | D164: 16 | E164: 10 | F164: 230;235;247 | G164: 合体期 | H164: 前 | I164: 10 | J164: 230 | K164: 235 | L164: 247 | M164: 42750 | N164: 100001 | O164: 20 | P164: 1301 | Q164: 1 | R164: 1301 | S164: 1 | T164: 0 | U164: =[1]主表!I162 -> 1497.173333 | V164: =[1]主表!J162 -> 38.72 | W164: =[1]主表!K162 -> 38.72 | X164: =[1]主表!L162 -> 205.72 | Y164: =[1]主表!$G162 -> 10286 | Z164: =[1]升级!$H161 -> 1000 | AA164: 25 | AB164: 20 | AC164: 4 | AD164: 3 | AE164: 4 | AF164: 1710 | AJ164: 1
A165: 161 | B165: 161 | C165: 6 | D165: 17 | E165: 1 | F165: 230;236;238 | G165: 合体期 | H165: 中 | I165: 1 | J165: 230 | K165: 236 | L165: 238 | M165: 44720 | N165: -1 | O165: -1 | P165: -1 | Q165: -1 | R165: =IF(I165=10,"1001;1002;1004",-1) -> -1 | S165: -1 | T165: 0 | U165: =[1]主表!I163 -> 1526.512 | V165: =[1]主表!J163 -> 39.36 | W165: =[1]主表!K163 -> 39.36 | X165: =[1]主表!L163 -> 209.78 | Y165: =[1]主表!$G163 -> 10489 | Z165: =[1]升级!$H162 -> 1000 | AA165: 26 | AB165: -1 | AC165: 4 | AD165: 3 | AE165: 4 | AF165: 1720 | AJ165: 1
A166: 162 | B166: 162 | C166: 6 | D166: 17 | E166: 2 | F166: 230;236;239 | G166: 合体期 | H166: 中 | I166: 2 | J166: 230 | K166: 236 | L166: 239 | M166: 44980 | N166: -1 | O166: -1 | P166: -1 | Q166: -1 | R166: -1 | S166: -1 | T166: 0 | U166: =[1]主表!I164 -> 1556.778 | V166: =[1]主表!J164 -> 40.02 | W166: =[1]主表!K164 -> 40.02 | X166: =[1]主表!L164 -> 213.96 | Y166: =[1]主表!$G164 -> 10698 | Z166: =[1]升级!$H163 -> 1000 | AA166: 26 | AB166: -1 | AC166: 4 | AD166: 3 | AE166: 4 | AF166: 1730 | AJ166: 1
A167: 163 | B167: 163 | C167: 6 | D167: 17 | E167: 3 | F167: 230;236;240 | G167: 合体期 | H167: 中 | I167: 3 | J167: 230 | K167: 236 | L167: 240 | M167: 45240 | N167: -1 | O167: -1 | P167: -1 | Q167: -1 | R167: -1 | S167: -1 | T167: 0 | U167: =[1]主表!I165 -> 1587.198 | V167: =[1]主表!J165 -> 40.68 | W167: =[1]主表!K165 -> 40.68 | X167: =[1]主表!L165 -> 218.16 | Y167: =[1]主表!$G165 -> 10908 | Z167: =[1]升级!$H164 -> 1000 | AA167: 26 | AB167: -1 | AC167: 4 | AD167: 3 | AE167: 4 | AF167: 1740 | AJ167: 1
A168: 164 | B168: 164 | C168: 6 | D168: 17 | E168: 4 | F168: 230;236;241 | G168: 合体期 | H168: 中 | I168: 4 | J168: 230 | K168: 236 | L168: 241 | M168: 45500 | N168: -1 | O168: -1 | P168: -1 | Q168: -1 | R168: -1 | S168: -1 | T168: 0 | U168: =[1]主表!I166 -> 1617.772 | V168: =[1]主表!J166 -> 41.34 | W168: =[1]主表!K166 -> 41.34 | X168: =[1]主表!L166 -> 222.4 | Y168: =[1]主表!$G166 -> 11120 | Z168: =[1]升级!$H165 -> 1000 | AA168: 26 | AB168: -1 | AC168: 4 | AD168: 3 | AE168: 4 | AF168: 1750 | AJ168: 1
A169: 165 | B169: 165 | C169: 6 | D169: 17 | E169: 5 | F169: 230;236;242 | G169: 合体期 | H169: 中 | I169: 5 | J169: 230 | K169: 236 | L169: 242 | M169: 45760 | N169: -1 | O169: -1 | P169: -1 | Q169: -1 | R169: -1 | S169: -1 | T169: 0 | U169: =[1]主表!I167 -> 1649.285 | V169: =[1]主表!J167 -> 42.02 | W169: =[1]主表!K167 -> 42.02 | X169: =[1]主表!L167 -> 226.76 | Y169: =[1]主表!$G167 -> 11338 | Z169: =[1]升级!$H166 -> 1000 | AA169: 26 | AB169: -1 | AC169: 4 | AD169: 3 | AE169: 4 | AF169: 1760 | AJ169: 1
A170: 166 | B170: 166 | C170: 6 | D170: 17 | E170: 6 | F170: 230;236;243 | G170: 合体期 | H170: 中 | I170: 6 | J170: 230 | K170: 236 | L170: 243 | M170: 46020 | N170: -1 | O170: -1 | P170: -1 | Q170: -1 | R170: -1 | S170: -1 | T170: 0 | U170: =[1]主表!I168 -> 1681.744 | V170: =[1]主表!J168 -> 42.72 | W170: =[1]主表!K168 -> 42.72 | X170: =[1]主表!L168 -> 231.26 | Y170: =[1]主表!$G168 -> 11563 | Z170: =[1]升级!$H167 -> 1000 | AA170: 26 | AB170: -1 | AC170: 4 | AD170: 3 | AE170: 4 | AF170: 1770 | AJ170: 1
A171: 167 | B171: 167 | C171: 6 | D171: 17 | E171: 7 | F171: 230;236;244 | G171: 合体期 | H171: 中 | I171: 7 | J171: 230 | K171: 236 | L171: 244 | M171: 46280 | N171: -1 | O171: -1 | P171: -1 | Q171: -1 | R171: -1 | S171: -1 | T171: 0 | U171: =[1]主表!I169 -> 1714.366333 | V171: =[1]主表!J169 -> 43.42 | W171: =[1]主表!K169 -> 43.42 | X171: =[1]主表!L169 -> 235.76 | Y171: =[1]主表!$G169 -> 11788 | Z171: =[1]升级!$H168 -> 1000 | AA171: 26 | AB171: -1 | AC171: 4 | AD171: 3 | AE171: 4 | AF171: 1780 | AJ171: 1
A172: 168 | B172: 168 | C172: 6 | D172: 17 | E172: 8 | F172: 230;236;245 | G172: 合体期 | H172: 中 | I172: 8 | J172: 230 | K172: 236 | L172: 245 | M172: 46540 | N172: -1 | O172: -1 | P172: -1 | Q172: -1 | R172: -1 | S172: -1 | T172: 0 | U172: =[1]主表!I170 -> 1747.944 | V172: =[1]主表!J170 -> 44.14 | W172: =[1]主表!K170 -> 44.14 | X172: =[1]主表!L170 -> 240.42 | Y172: =[1]主表!$G170 -> 12021 | Z172: =[1]升级!$H169 -> 1000 | AA172: 26 | AB172: -1 | AC172: 4 | AD172: 3 | AE172: 4 | AF172: 1790 | AJ172: 1
A173: 169 | B173: 169 | C173: 6 | D173: 17 | E173: 9 | F173: 230;236;246 | G173: 合体期 | H173: 中 | I173: 9 | J173: 230 | K173: 236 | L173: 246 | M173: 46800 | N173: -1 | O173: -1 | P173: -1 | Q173: -1 | R173: -1 | S173: -1 | T173: 0 | U173: =[1]主表!I171 -> 1781.689667 | V173: =[1]主表!J171 -> 44.86 | W173: =[1]主表!K171 -> 44.86 | X173: =[1]主表!L171 -> 245.08 | Y173: =[1]主表!$G171 -> 12254 | Z173: =[1]升级!$H170 -> 1000 | AA173: 26 | AB173: -1 | AC173: 4 | AD173: 3 | AE173: 4 | AF173: 1800 | AJ173: 1
A174: 170 | B174: 170 | C174: 6 | D174: 17 | E174: 10 | F174: 230;236;247 | G174: 合体期 | H174: 中 | I174: 10 | J174: 230 | K174: 236 | L174: 247 | M174: 47060 | N174: 100001 | O174: 20 | P174: 1301 | Q174: 1 | R174: 1301;1302 | S174: 1;1 | T174: 0 | U174: =[1]主表!I172 -> 1904.83 | V174: =[1]主表!J172 -> 47.82 | W174: =[1]主表!K172 -> 47.82 | X174: =[1]主表!L172 -> 288.27 | Y174: =[1]主表!$G172 -> 13103 | Z174: =[1]升级!$H171 -> 1000 | AA174: 26 | AB174: 20 | AC174: 4 | AD174: 3 | AE174: 4 | AF174: 1810 | AJ174: 1
A175: 171 | B175: 171 | C175: 6 | D175: 18 | E175: 1 | F175: 230;237;238 | G175: 合体期 | H175: 后 | I175: 1 | J175: 230 | K175: 237 | L175: 238 | M175: 49140 | N175: -1 | O175: -1 | P175: -1 | Q175: -1 | R175: =IF(I175=10,"1001;1002;1004",-1) -> -1 | S175: -1 | T175: 0 | U175: =[1]主表!I173 -> 1941.57 | V175: =[1]主表!J173 -> 48.6 | W175: =[1]主表!K173 -> 48.6 | X175: =[1]主表!L173 -> 293.85 | Y175: =[1]主表!$G173 -> 13357 | Z175: =[1]升级!$H172 -> 1000 | AA175: 27 | AB175: -1 | AC175: 4 | AD175: 3 | AE175: 4 | AF175: 1820 | AJ175: 1
A176: 172 | B176: 172 | C176: 6 | D176: 18 | E176: 2 | F176: 230;237;239 | G176: 合体期 | H176: 后 | I176: 2 | J176: 230 | K176: 237 | L176: 239 | M176: 49410 | N176: -1 | O176: -1 | P176: -1 | Q176: -1 | R176: -1 | S176: -1 | T176: 0 | U176: =[1]主表!I174 -> 1979.293333 | V176: =[1]主表!J174 -> 49.4 | W176: =[1]主表!K174 -> 49.4 | X176: =[1]主表!L174 -> 299.62 | Y176: =[1]主表!$G174 -> 13619 | Z176: =[1]升级!$H173 -> 1000 | AA176: 27 | AB176: -1 | AC176: 4 | AD176: 3 | AE176: 4 | AF176: 1830 | AJ176: 1
A177: 173 | B177: 173 | C177: 6 | D177: 18 | E177: 3 | F177: 230;237;240 | G177: 合体期 | H177: 后 | I177: 3 | J177: 230 | K177: 237 | L177: 240 | M177: 49680 | N177: -1 | O177: -1 | P177: -1 | Q177: -1 | R177: -1 | S177: -1 | T177: 0 | U177: =[1]主表!I175 -> 2018.007 | V177: =[1]主表!J175 -> 50.22 | W177: =[1]主表!K175 -> 50.22 | X177: =[1]主表!L175 -> 305.51 | Y177: =[1]主表!$G175 -> 13887 | Z177: =[1]升级!$H174 -> 1000 | AA177: 27 | AB177: -1 | AC177: 4 | AD177: 3 | AE177: 4 | AF177: 1840 | AJ177: 1
A178: 174 | B178: 174 | C178: 6 | D178: 18 | E178: 4 | F178: 230;237;241 | G178: 合体期 | H178: 后 | I178: 4 | J178: 230 | K178: 237 | L178: 241 | M178: 49950 | N178: -1 | O178: -1 | P178: -1 | Q178: -1 | R178: -1 | S178: -1 | T178: 0 | U178: =[1]主表!I176 -> 2056.912 | V178: =[1]主表!J176 -> 51.04 | W178: =[1]主表!K176 -> 51.04 | X178: =[1]主表!L176 -> 311.43 | Y178: =[1]主表!$G176 -> 14156 | Z178: =[1]升级!$H175 -> 1000 | AA178: 27 | AB178: -1 | AC178: 4 | AD178: 3 | AE178: 4 | AF178: 1850 | AJ178: 1
A179: 175 | B179: 175 | C179: 6 | D179: 18 | E179: 5 | F179: 230;237;242 | G179: 合体期 | H179: 后 | I179: 5 | J179: 230 | K179: 237 | L179: 242 | M179: 50220 | N179: -1 | O179: -1 | P179: -1 | Q179: -1 | R179: -1 | S179: -1 | T179: 0 | U179: =[1]主表!I177 -> 2096.816667 | V179: =[1]主表!J177 -> 51.88 | W179: =[1]主表!K177 -> 51.88 | X179: =[1]主表!L177 -> 317.5 | Y179: =[1]主表!$G177 -> 14432 | Z179: =[1]升级!$H176 -> 1000 | AA179: 27 | AB179: -1 | AC179: 4 | AD179: 3 | AE179: 4 | AF179: 1860 | AJ179: 1
A180: 176 | B180: 176 | C180: 6 | D180: 18 | E180: 6 | F180: 230;237;243 | G180: 合体期 | H180: 后 | I180: 6 | J180: 230 | K180: 237 | L180: 243 | M180: 50490 | N180: -1 | O180: -1 | P180: -1 | Q180: -1 | R180: -1 | S180: -1 | T180: 0 | U180: =[1]主表!I178 -> 2137.728 | V180: =[1]主表!J178 -> 52.74 | W180: =[1]主表!K178 -> 52.74 | X180: =[1]主表!L178 -> 323.75 | Y180: =[1]主表!$G178 -> 14716 | Z180: =[1]升级!$H177 -> 1000 | AA180: 27 | AB180: -1 | AC180: 4 | AD180: 3 | AE180: 4 | AF180: 1870 | AJ180: 1
A181: 177 | B181: 177 | C181: 6 | D181: 18 | E181: 7 | F181: 230;237;244 | G181: 合体期 | H181: 后 | I181: 7 | J181: 230 | K181: 237 | L181: 244 | M181: 50760 | N181: -1 | O181: -1 | P181: -1 | Q181: -1 | R181: -1 | S181: -1 | T181: 0 | U181: =[1]主表!I179 -> 2178.84 | V181: =[1]主表!J179 -> 53.6 | W181: =[1]主表!K179 -> 53.6 | X181: =[1]主表!L179 -> 330.02 | Y181: =[1]主表!$G179 -> 15001 | Z181: =[1]升级!$H178 -> 1000 | AA181: 27 | AB181: -1 | AC181: 4 | AD181: 3 | AE181: 4 | AF181: 1880 | AJ181: 1
A182: 178 | B182: 178 | C182: 6 | D182: 18 | E182: 8 | F182: 230;237;245 | G182: 合体期 | H182: 后 | I182: 8 | J182: 230 | K182: 237 | L182: 245 | M182: 51030 | N182: -1 | O182: -1 | P182: -1 | Q182: -1 | R182: -1 | S182: -1 | T182: 0 | U182: =[1]主表!I180 -> 2220.968 | V182: =[1]主表!J180 -> 54.48 | W182: =[1]主表!K180 -> 54.48 | X182: =[1]主表!L180 -> 336.42 | Y182: =[1]主表!$G180 -> 15292 | Z182: =[1]升级!$H179 -> 1000 | AA182: 27 | AB182: -1 | AC182: 4 | AD182: 3 | AE182: 4 | AF182: 1890 | AJ182: 1
A183: 179 | B183: 179 | C183: 6 | D183: 18 | E183: 9 | F183: 230;237;246 | G183: 合体期 | H183: 后 | I183: 9 | J183: 230 | K183: 237 | L183: 246 | M183: 51300 | N183: -1 | O183: -1 | P183: -1 | Q183: -1 | R183: -1 | S183: -1 | T183: 0 | U183: =[1]主表!I181 -> 2264.119 | V183: =[1]主表!J181 -> 55.38 | W183: =[1]主表!K181 -> 55.38 | X183: =[1]主表!L181 -> 343 | Y183: =[1]主表!$G181 -> 15591 | Z183: =[1]升级!$H180 -> 1000 | AA183: 27 | AB183: -1 | AC183: 4 | AD183: 3 | AE183: 4 | AF183: 1900 | AJ183: 1
A184: 180 | B184: 180 | C184: 6 | D184: 18 | E184: 10 | F184: 230;237;247 | G184: 合体期 | H184: 后 | I184: 10 | J184: 230 | K184: 237 | L184: 247 | M184: 51570 | N184: 100001 | O184: 20 | P184: 1301 | Q184: 1 | R184: 1301;1302;1303 | S184: 1;1;1 | T184: 18000;27000 | U184: =[1]主表!I182 -> 2569.88 | V184: =[1]主表!J182 -> 62.68 | W184: =[1]主表!K182 -> 62.68 | X184: =[1]主表!L182 -> 424.78 | Y184: =[1]主表!$G182 -> 17699 | Z184: =[1]升级!$H181 -> 1000 | AA184: 27 | AB184: 50 | AC184: 4 | AD184: 3 | AE184: 4 | AF184: 1910 | AJ184: 1
A185: 181 | B185: 181 | C185: 7 | D185: 19 | E185: 1 | F185: 231;235;238 | G185: 大乘期 | H185: 前 | I185: 1 | J185: 231 | K185: 235 | L185: 238 | M185: 53760 | N185: -1 | O185: -1 | P185: -1 | Q185: -1 | R185: =IF(I185=10,"1001;1002;1004",-1) -> -1 | S185: =IF(R185=-1,-1,"100;200;300") -> -1 | T185: =IF(G185=G186,0,CONCATENATE(B185*100,";",B185*150)) -> 0 | U185: =[1]主表!I183 -> 2619.954 | V185: =[1]主表!J183 -> 63.72 | W185: =[1]主表!K183 -> 63.72 | X185: =[1]主表!L183 -> 433.46 | Y185: =[1]主表!$G183 -> 18061 | Z185: =[1]升级!$H182 -> 1000 | AA185: 28 | AB185: -1 | AC185: 4 | AD185: 3 | AE185: 4 | AF185: 1920 | AJ185: 1
A186: 182 | B186: 182 | C186: 7 | D186: 19 | E186: 2 | F186: 231;235;239 | G186: 大乘期 | H186: 前 | I186: 2 | J186: 231 | K186: 235 | L186: 239 | M186: 54040 | N186: -1 | O186: -1 | P186: -1 | Q186: -1 | R186: =IF(I186=10,"1001;1002;1004",-1) -> -1 | S186: =IF(R186=-1,-1,"100;200;300") -> -1 | T186: =IF(G186=G187,0,CONCATENATE(B186*100,";",B186*150)) -> 0 | U186: =[1]主表!I184 -> 2670.270667 | V186: =[1]主表!J184 -> 64.76 | W186: =[1]主表!K184 -> 64.76 | X186: =[1]主表!L184 -> 442.22 | Y186: =[1]主表!$G184 -> 18426 | Z186: =[1]升级!$H183 -> 1000 | AA186: 28 | AB186: -1 | AC186: 4 | AD186: 3 | AE186: 4 | AF186: 1930 | AJ186: 1
A187: 183 | B187: 183 | C187: 7 | D187: 19 | E187: 3 | F187: 231;235;240 | G187: 大乘期 | H187: 前 | I187: 3 | J187: 231 | K187: 235 | L187: 240 | M187: 54320 | N187: -1 | O187: -1 | P187: -1 | Q187: -1 | R187: -1 | S187: -1 | T187: 0 | U187: =[1]主表!I185 -> 2722.484 | V187: =[1]主表!J185 -> 65.84 | W187: =[1]主表!K185 -> 65.84 | X187: =[1]主表!L185 -> 451.3 | Y187: =[1]主表!$G185 -> 18804 | Z187: =[1]升级!$H184 -> 1000 | AA187: 28 | AB187: -1 | AC187: 4 | AD187: 3 | AE187: 4 | AF187: 1940 | AJ187: 1
A188: 184 | B188: 184 | C188: 7 | D188: 19 | E188: 4 | F188: 231;235;241 | G188: 大乘期 | H188: 前 | I188: 4 | J188: 231 | K188: 235 | L188: 241 | M188: 54600 | N188: -1 | O188: -1 | P188: -1 | Q188: -1 | R188: -1 | S188: -1 | T188: 0 | U188: =[1]主表!I186 -> 2774.949333 | V188: =[1]主表!J186 -> 66.92 | W188: =[1]主表!K186 -> 66.92 | X188: =[1]主表!L186 -> 460.42 | Y188: =[1]主表!$G186 -> 19184 | Z188: =[1]升级!$H185 -> 1000 | AA188: 28 | AB188: -1 | AC188: 4 | AD188: 3 | AE188: 4 | AF188: 1950 | AJ188: 1
A189: 185 | B189: 185 | C189: 7 | D189: 19 | E189: 5 | F189: 231;235;242 | G189: 大乘期 | H189: 前 | I189: 5 | J189: 231 | K189: 235 | L189: 242 | M189: 54880 | N189: -1 | O189: -1 | P189: -1 | Q189: -1 | R189: -1 | S189: -1 | T189: 0 | U189: =[1]主表!I187 -> 2828.498333 | V189: =[1]主表!J187 -> 68.02 | W189: =[1]主表!K187 -> 68.02 | X189: =[1]主表!L187 -> 469.75 | Y189: =[1]主表!$G187 -> 19573 | Z189: =[1]升级!$H186 -> 1000 | AA189: 28 | AB189: -1 | AC189: 4 | AD189: 3 | AE189: 4 | AF189: 1960 | AJ189: 1
A190: 186 | B190: 186 | C190: 7 | D190: 19 | E190: 6 | F190: 231;235;243 | G190: 大乘期 | H190: 前 | I190: 6 | J190: 231 | K190: 235 | L190: 243 | M190: 55160 | N190: -1 | O190: -1 | P190: -1 | Q190: -1 | R190: -1 | S190: -1 | T190: 0 | U190: =[1]主表!I188 -> 2883.138 | V190: =[1]主表!J188 -> 69.14 | W190: =[1]主表!K188 -> 69.14 | X190: =[1]主表!L188 -> 479.45 | Y190: =[1]主表!$G188 -> 19977 | Z190: =[1]升级!$H187 -> 1000 | AA190: 28 | AB190: -1 | AC190: 4 | AD190: 3 | AE190: 4 | AF190: 1970 | AJ190: 1
A191: 187 | B191: 187 | C191: 7 | D191: 19 | E191: 7 | F191: 231;235;244 | G191: 大乘期 | H191: 前 | I191: 7 | J191: 231 | K191: 235 | L191: 244 | M191: 55440 | N191: -1 | O191: -1 | P191: -1 | Q191: -1 | R191: -1 | S191: -1 | T191: 0 | U191: =[1]主表!I189 -> 2938.875333 | V191: =[1]主表!J189 -> 70.28 | W191: =[1]主表!K189 -> 70.28 | X191: =[1]主表!L189 -> 489.34 | Y191: =[1]主表!$G189 -> 20389 | Z191: =[1]升级!$H188 -> 1000 | AA191: 28 | AB191: -1 | AC191: 4 | AD191: 3 | AE191: 4 | AF191: 1980 | AJ191: 1
A192: 188 | B192: 188 | C192: 7 | D192: 19 | E192: 8 | F192: 231;235;245 | G192: 大乘期 | H192: 前 | I192: 8 | J192: 231 | K192: 235 | L192: 245 | M192: 55720 | N192: -1 | O192: -1 | P192: -1 | Q192: -1 | R192: -1 | S192: -1 | T192: 0 | U192: =[1]主表!I190 -> 2995.717333 | V192: =[1]主表!J190 -> 71.44 | W192: =[1]主表!K190 -> 71.44 | X192: =[1]主表!L190 -> 499.42 | Y192: =[1]主表!$G190 -> 20809 | Z192: =[1]升级!$H189 -> 1000 | AA192: 28 | AB192: -1 | AC192: 4 | AD192: 3 | AE192: 4 | AF192: 1990 | AJ192: 1
A193: 189 | B193: 189 | C193: 7 | D193: 19 | E193: 9 | F193: 231;235;246 | G193: 大乘期 | H193: 前 | I193: 9 | J193: 231 | K193: 235 | L193: 246 | M193: 56000 | N193: -1 | O193: -1 | P193: -1 | Q193: -1 | R193: -1 | S193: -1 | T193: 0 | U193: =[1]主表!I191 -> 3053.671 | V193: =[1]主表!J191 -> 72.62 | W193: =[1]主表!K191 -> 72.62 | X193: =[1]主表!L191 -> 509.71 | Y193: =[1]主表!$G191 -> 21238 | Z193: =[1]升级!$H190 -> 1000 | AA193: 28 | AB193: -1 | AC193: 4 | AD193: 3 | AE193: 4 | AF193: 2000 | AJ193: 1
A194: 190 | B194: 190 | C194: 7 | D194: 19 | E194: 10 | F194: 231;235;247 | G194: 大乘期 | H194: 前 | I194: 10 | J194: 231 | K194: 235 | L194: 247 | M194: 56500 | N194: 100001 | O194: 20 | P194: 1301 | Q194: 1 | R194: 1301 | S194: 1 | T194: 0 | U194: =[1]主表!I192 -> 3263.7 | V194: =[1]主表!J192 -> 77.4 | W194: =[1]主表!K192 -> 77.4 | X194: =[1]主表!L192 -> 590.9 | Y194: =[1]主表!$G192 -> 22727 | Z194: =[1]升级!$H191 -> 1000 | AA194: 28 | AB194: 20 | AC194: 4 | AD194: 3 | AE194: 4 | AF194: 2018 | AJ194: 1
A195: 191 | B195: 191 | C195: 7 | D195: 20 | E195: 1 | F195: 231;236;238 | G195: 大乘期 | H195: 中 | I195: 1 | J195: 231 | K195: 236 | L195: 238 | M195: 59880 | N195: -1 | O195: -1 | P195: -1 | Q195: -1 | R195: =IF(I195=10,"1001;1002;1004",-1) -> -1 | S195: -1 | T195: 0 | U195: =[1]主表!I193 -> 3326.852667 | V195: =[1]主表!J193 -> 78.68 | W195: =[1]主表!K193 -> 78.68 | X195: =[1]主表!L193 -> 603.1 | Y195: =[1]主表!$G193 -> 23196 | Z195: =[1]升级!$H192 -> 1000 | AA195: 29 | AB195: -1 | AC195: 4 | AD195: 3 | AE195: 4 | AF195: 2065 | AJ195: 1
A196: 192 | B196: 192 | C196: 7 | D196: 20 | E196: 2 | F196: 231;236;239 | G196: 大乘期 | H196: 中 | I196: 2 | J196: 231 | K196: 236 | L196: 239 | M196: 61270 | N196: -1 | O196: -1 | P196: -1 | Q196: -1 | R196: -1 | S196: -1 | T196: 0 | U196: =[1]主表!I194 -> 3390.304 | V196: =[1]主表!J194 -> 79.96 | W196: =[1]主表!K194 -> 79.96 | X196: =[1]主表!L194 -> 615.34 | Y196: =[1]主表!$G194 -> 23667 | Z196: =[1]升级!$H193 -> 1000 | AA196: 29 | AB196: -1 | AC196: 4 | AD196: 3 | AE196: 4 | AF196: 2113 | AJ196: 1
A197: 193 | B197: 193 | C197: 7 | D197: 20 | E197: 3 | F197: 231;236;240 | G197: 大乘期 | H197: 中 | I197: 3 | J197: 231 | K197: 236 | L197: 240 | M197: 62720 | N197: -1 | O197: -1 | P197: -1 | Q197: -1 | R197: -1 | S197: -1 | T197: 0 | U197: =[1]主表!I195 -> 3455.754667 | V197: =[1]主表!J195 -> 81.28 | W197: =[1]主表!K195 -> 81.28 | X197: =[1]主表!L195 -> 627.98 | Y197: =[1]主表!$G195 -> 24153 | Z197: =[1]升级!$H194 -> 1000 | AA197: 29 | AB197: -1 | AC197: 4 | AD197: 3 | AE197: 4 | AF197: 2163 | AJ197: 1
A198: 194 | B198: 194 | C198: 7 | D198: 20 | E198: =I198 -> 4 | F198: =_xlfn.TEXTJOIN(";",1,J198:L198) -> 231;236;241 | G198: 大乘期 | H198: 中 | I198: 4 | J198: 231 | K198: 236 | L198: 241 | M198: =INT(0.1*AA198*AF198)*10 -> 64170 | N198: =IF(I198=10,100001,-1) -> -1 | O198: =IF(N198=-1,-1,20) -> -1 | P198: -1 | Q198: -1 | R198: -1 | S198: -1 | T198: 0 | U198: =[1]主表!I196 -> 3522.366 | V198: =[1]主表!J196 -> 82.62 | W198: =[1]主表!K196 -> 82.62 | X198: =[1]主表!L196 -> 640.87 | Y198: =[1]主表!$G196 -> 24649 | Z198: =[1]升级!$H195 -> 1000 | AA198: 29 | AB198: -1 | AC198: 4 | AD198: 3 | AE198: 4 | AF198: =MAX(AF197+10,ROUND(10^(B198*0.01+1.405),0)) -> 2213 | AJ198: 1
A199: 195 | B199: 195 | C199: 7 | D199: 20 | E199: 5 | F199: 231;236;242 | G199: 大乘期 | H199: 中 | I199: 5 | J199: 231 | K199: 236 | L199: 242 | M199: 65680 | N199: -1 | O199: -1 | P199: -1 | Q199: -1 | R199: -1 | S199: -1 | T199: 0 | U199: =[1]主表!I197 -> 3590.145 | V199: =[1]主表!J197 -> 83.98 | W199: =[1]主表!K197 -> 83.98 | X199: =[1]主表!L197 -> 653.98 | Y199: =[1]主表!$G197 -> 25153 | Z199: =[1]升级!$H196 -> 1000 | AA199: 29 | AB199: -1 | AC199: 4 | AD199: 3 | AE199: 4 | AF199: 2265 | AJ199: 1
A200: 196 | B200: 196 | C200: 7 | D200: 20 | E200: 6 | F200: 231;236;243 | G200: 大乘期 | H200: 中 | I200: 6 | J200: 231 | K200: 236 | L200: 243 | M200: 67190 | N200: -1 | O200: -1 | P200: -1 | Q200: -1 | R200: -1 | S200: -1 | T200: 0 | U200: =[1]主表!I198 -> 3659.098667 | V200: =[1]主表!J198 -> 85.36 | W200: =[1]主表!K198 -> 85.36 | X200: =[1]主表!L198 -> 667.34 | Y200: =[1]主表!$G198 -> 25667 | Z200: =[1]升级!$H197 -> 1000 | AA200: 29 | AB200: -1 | AC200: 4 | AD200: 3 | AE200: 4 | AF200: 2317 | AJ200: 1
... 104 more rows
